{"text_format":"1","workbook":"xlsx","n_sheets":7,"sheets":["1) Kumulativní rozpočet","KR zdroj","KR výstup","2) Stanovení jednotkové podpory","SJP Pomocné hodnoty","3) Výsledný rozpočet do ISKP21+","VP pomocné hodnoty"],"not_rendered":{"charts":0,"images":6,"macros":1,"external_links":1,"defined_names":16,"comments":4,"pivot_tables":0},"unopened":[],"bounds":{"document_bytes":16777216,"sheet_cells":100000,"rows_first":2000,"rows_last":500,"rows_between":2000,"halvings":0,"cell_chars":16384,"cell_head_chars":4096},"cells_cut":0,"cells_raw":0,"read":"whole","date_system":"1900"}

{"sheet":"1) Kumulativní rozpočet","index":0,"n_rows":67,"n_cols":10,"rows_kept":67,"cut":false,"hidden":false,"merged":[[7,8,7,9],[15,1,18,1],[21,3,21,6],[23,3,23,7],[28,6,33,8],[1,1,1,4],[2,3,2,5],[4,2,4,5],[4,8,4,9],[5,2,5,5],[5,8,5,9]]}
[]
[null,"Kumulativní rozpočet projektu"]
[null,null,"Editujte pouze zelená pole nebo použijte výběrová tlačítka","Důležité informace jsou označeny v komentáři u daných buněk."]
[]
[null,"Název žadatele:"]
[null,"Název projektu:"]
[]
[null,"Specifický cíl:"]
[null,"Opatření specifického cíle:",null,null,null,null," více Opatření na projektu?",{"$f":"IF('KR zdroj'!B56=TRUE,\"Vyberte všechna Opatření projektu na řádcích 52 a níže\",IF(AND('KR zdroj'!B56=FALSE,'KR zdroj'!Q63>0),\"Pozor na řádku 52 a níže vybráno více Opatření, které ale není v buňce G9 zaškrtnuto\",\"\"))","v":""}]
[null,"Aktivita (je-li relevantní):",null,null,null,null," více Aktivit na projektu?",{"$f":"IF('KR zdroj'!B57=TRUE,\"Vyberte všechny Aktivity projektu na řádcích 65 a níže\",IF(AND('KR zdroj'!B57=FALSE,'KR zdroj'!Q69>0),\"Pozor na řádku 65 a níže vybráno více Aktivit, které ale nejsou v buňce G10 zaškrtnuté\",\"\"))","v":""}]
[null,"Podaktivita (je-li relevantní)",null,null,null,null," více Podaktivit na projektu?",{"$f":"IF('KR zdroj'!B58=TRUE,\"Vyberte všechny Podopatření projektu na řádcích 72 a níže\",IF(AND('KR zdroj'!B58=FALSE,'KR zdroj'!Q74>0),\"Pozor na řádku 72 a níže vybráno více Podaktivit, které ale nejsou v buňce G11 zaškrtnuté\",\"\"))","v":""}]
[null,"DPH uznatelnost:"]
[null,null,null,null,null,null," "]
[null,"Souhrnný rozpočet"]
[null,null,null,"Náklady bez DPH","DPH [%]","Náklady s DPH","Nezpůsobilá část z celkových nákladů stanovená žadatelem (bez DPH)","Nezpůsobilá část celkem","Způsobilé náklady po zohlednění limitů způsobilých nákladů a způsobilosti DPH","INTERNÍ: Pozor na správný výpočet CZPRV při přepisu názvů položek realizace"]
[null,"Realizace","Stavební náklady",0,21,{"$f":"D16*(1+(E16/100))","v":0},0,{"$f":"CHOOSE('KR zdroj'!$P$26,G16*(1+('1) Kumulativní rozpočet'!E16/100)),D16*(E16/100)+G16,G16*(1+('1) Kumulativní rozpočet'!E16/100)),\"vyber uznatelnost DPH\")","v":"vyber uznatelnost DPH"},{"$f":"IFERROR(F16-H16,\"zadej výdaje/uznatelnost DPH\")","v":"zadej výdaje/uznatelnost DPH"}]
[null,null,"Rezerva",0,21,{"$f":"D17*(1+(E17/100))","v":0},0,{"$f":"CHOOSE('KR zdroj'!$P$26,G17*(1+('1) Kumulativní rozpočet'!E17/100)),D17*(E17/100)+G17,G17*(1+('1) Kumulativní rozpočet'!E17/100)),\"vyber uznatelnost DPH\")","v":"vyber uznatelnost DPH"},0]
[null,null,"Nákup pozemku",0,21,0,0,{"$f":"CHOOSE('KR zdroj'!$P$26,G18*(1+('1) Kumulativní rozpočet'!E18/100)),D18*(E18/100)+G18,G18*(1+('1) Kumulativní rozpočet'!E18/100)),\"vyber uznatelnost DPH\")","v":"vyber uznatelnost DPH"},{"$f":"IFERROR(F18-H18,\"zadej výdaje/uznatelnost DPH\")","v":"zadej výdaje/uznatelnost DPH"}]
[null,null,"vývoj/koncepce vzdělávacích programů pro poskytování klimatického vzdělávání",0,21,0,0,{"$f":"CHOOSE('KR zdroj'!$P$26,G19*(1+('1) Kumulativní rozpočet'!E19/100)),D19*(E19/100)+G19,G19*(1+('1) Kumulativní rozpočet'!E19/100)),\"vyber uznatelnost DPH\")","v":"vyber uznatelnost DPH"},"zadej výdaje/uznatelnost DPH"]
[null,null,"Celkem",{"$f":"SUM(D16:D19)","v":0},null,{"$f":"SUM(F16:F19)","v":0},null,{"$f":"SUM(H16:H19)","v":0},{"$f":"IFERROR(I16+I17+I18+I19,\"zadej výdaje/uznatelnost DPH\")","v":"zadej výdaje/uznatelnost DPH"}," = Celk. zp. náklady (realizace)"]
[null,null,null,null,null,null,null,null,{"$f":"IFERROR(I16+I18,\"zadej výdaje/uznatelnost DPH\")","v":"zadej výdaje/uznatelnost DPH"}," = Celk. zp. přímé realizační výdaje"]
[null,null,null,{"$f":"IF(AND(B27>100000000,OR('KR zdroj'!P26=3,'KR zdroj'!P26=4)),\"Upozornění - při celkových nákladech projektu ve výši 5 mil. EUR a více je DPH NIN! viz Pržap kap. B.1.6.3\",\"\")","v":""},null,null,null,null,{"$f":"IFERROR(I21*'KR zdroj'!P30,0)","v":0},"moje ctrl - vymazat"]
[null,null,null,null,null,null,null,null,{"$f":"CHOOSE('KR zdroj'!$P$26,$I$24,$I$24*(1+($E$16/100)),$I$24,0)","v":0}]
[null,"Paušální sazba","Nepřímé náklady dle Pržap - Příloha č. 3, část III.","Maximální výše způsobilých nepřímých nákladů se dopočítává dle výše celkových způsobilých přímých realizačních výdajů stanovených formou jednotkových nákladů a uznatelnosti DPH",null,null,null,null,{"$f":"IF(OR(J24<=15000000,J24=\"zadej výdaje/uznatelnost DPH\"),J24,15000000)","v":"zadej výdaje/uznatelnost DPH"},{"$f":"IFERROR('KR zdroj'!P32*'1) Kumulativní rozpočet'!I21,\"zadej výdaje/uznatelnost DPH\")","v":"zadej výdaje/uznatelnost DPH"}]
[]
[null,null,null,{"$f":"CHOOSE('KR zdroj'!P2,0,0,0,0,0,'1) Kumulativní rozpočet'!D25,'1) Kumulativní rozpočet'!D25,'1) Kumulativní rozpočet'!D25,'1) Kumulativní rozpočet'!D25,'1) Kumulativní rozpočet'!D25,'1) Kumulativní rozpočet'!D25,'1) Kumulativní rozpočet'!D25,'1) Kumulativní rozpočet'!D25,'1) Kumulativní rozpočet'!D25,0,'1) Kumulativní rozpočet'!D25,'1) Kumulativní rozpočet'!D25,0,0,'1) Kumulativní rozpočet'!D25)","v":0},null,{"$f":"(D26)*(1+(E16/100))","v":0},null,{"$f":"CHOOSE([1]zdroj!P2,0,0,0,0,0,'1) Kumulativní rozpočet'!H25,'1) Kumulativní rozpočet'!H25,'1) Kumulativní rozpočet'!H25,'1) Kumulativní rozpočet'!H25,'1) Kumulativní rozpočet'!H25,'1) Kumulativní rozpočet'!H25,'1) Kumulativní rozpočet'!H25,'1) Kumulativní rozpočet'!H25,'1) Kumulativní rozpočet'!H25,0,'1) Kumulativní rozpočet'!H25,'1) Kumulativní rozpočet'!H25,0,0,'1) Kumulativní rozpočet'!H25)","v":0},{"$f":"CHOOSE([1]zdroj!P2,0,0,0,0,0,'1) Kumulativní rozpočet'!I25,'1) Kumulativní rozpočet'!I25,'1) Kumulativní rozpočet'!I25,'1) Kumulativní rozpočet'!I25,'1) Kumulativní rozpočet'!I25,'1) Kumulativní rozpočet'!I25,'1) Kumulativní rozpočet'!I25,'1) Kumulativní rozpočet'!I25,'1) Kumulativní rozpočet'!I25,0,'1) Kumulativní rozpočet'!I25,'1) Kumulativní rozpočet'!I25,0,0,'1) Kumulativní rozpočet'!I25)","v":0}]
[null,{"$f":"IF(D27=\"zadej výdaje/DPH\",0,D27)","v":0},"Celkové náklady projektu",{"$f":"IFERROR(IF(F20+I23+F26=0,\"zadej výdaje/DPH\",F20+I23+F26),\"zadej výdaje/DPH\")","v":"zadej výdaje/DPH"}]
[null,null,"Celkové způsobilé výdaje projektu",{"$f":"IFERROR(IF(ROUND(I20+I24+I26,0)=0,\"zadej výdaje/DPH\",ROUND(I20+I24+I26,0)),\"zadej výdaje/DPH\")","v":"zadej výdaje/DPH"},null,null,"Komentář ke stanoveným nezpůsobilým nákladům:"]
[null,null,"Celkové nezpůsobilé výdaje projektu",{"$f":"IFERROR(ROUND(D27-D28,0),\"zadej výdaje/DPH\")","v":"zadej výdaje/DPH"},null,null,"zde vepište případný komentář k nezpůsobilým výdajům"]
[]
[]
[]
[]
[null,null,"Zpracoval","………………………………..",{"$f":"TODAY()","v":"2023-07-21"}]
[]
[]
[]
[]
[]
[]
[]
[null,null,"Opatření - vyberte všechna další Opatření na projektu"]
[null,"hlavní Opatření dle KR",{"$f":"CHOOSE([1]zdroj!C10,[1]zdroj!D10,[1]zdroj!D11,[1]zdroj!D12,[1]zdroj!D13,[1]zdroj!D14,[1]zdroj!D15,[1]zdroj!D16,[1]zdroj!D17,[1]zdroj!D18,[1]zdroj!D19,[1]zdroj!D20)","v":"Vyber nejprve Specifický cíl a poté hlavní Opatření projektu"},null,null,null,null," "]
[null,null,"vyber Opatření #2",null,null,{"$f":"IF(C43=C44,\"Duplicita Opatření\",\"\")","v":""},null," "]
[null,null,"vyber Opatření #3",null,null,{"$f":"IF(OR(C43=C45,C44=C45),\"Duplicita Opatření\",\"\")","v":""},null," "]
[null,null,"vyber Opatření #4",null,null,{"$f":"IF(OR(C46=C45,C46=C44,C46=C43),\"Duplicita Opatření\",\"\")","v":""},null," "]
[null,null,"vyber Opatření #5",null,null,{"$f":"IF(OR(C45=C47,C47=C46,C47=C44,C47=C43),\"Duplicita Opatření\",\"\")","v":""},null," "]
[null,null,"vyber Opatření #6",null,null,{"$f":"IF(OR(C48=C47,C48=C46,C48=C45,C48=C44,C48=C43),\"Duplicita Opatření\",\"\")","v":""},null," "]
[null,null,"vyber Opatření #7",null,null,{"$f":"IF(OR(C49=C48,C49=C47,C49=C46,C49=C45,C49=C44,C49=C43),\"Duplicita Opatření\",\"\")","v":""},null," "]
[null,null,"vyber Opatření #8",null,null,{"$f":"IF(OR($C$48=C50,$C$49=C50,$C$47=C50,$C$46=C50,$C$45=C50,$C$44=C50,$C$43=C50),\"Duplicita Opatření\",\"\")","v":""},null," "]
[null,null,"vyber Opatření #9",null,null,{"$f":"IF(OR($C$50=C51,$C$48=C51,$C$49=C51,$C$47=C51,$C$46=C51,$C$45=C51,$C$44=C51,$C$43=C51),\"Duplicita Opatření\",\"\")","v":""},null," "]
[null,null,"vyber Opatření #10",null,null,{"$f":"IF(OR($C$51=C52,$C$50=C52,$C$48=C52,$C$49=C52,$C$47=C52,$C$46=C52,$C$45=C52,$C$44=C52,$C$43=C52),\"Duplicita Opatření\",\"\")","v":""},null," "]
[null,null,"vyber Opatření #11",null,null,{"$f":"IF(OR(C52=C53,$C$51=C53,$C$50=C53,$C$48=C53,$C$49=C53,$C$47=C53,$C$46=C53,$C$45=C53,$C$44=C53,$C$43=C53),\"Duplicita Opatření\",\"\")","v":""},null," "]
[null,null,null,null,null,null,null," "]
[null,null,"Aktivity - vyberte všechny další Aktivity na projektu"]
[null,"hlavní Aktivita z KR",{"$f":"CHOOSE([1]zdroj!B24,[1]zdroj!D23,[1]zdroj!D24,[1]zdroj!D25,[1]zdroj!D26,[1]zdroj!D27)","v":"irelevantní"},null,null,null,null," "]
[null,null,"vyber Aktivitu #2",null,null,null,{"$f":"IF(C57=C56,\"Duplicita Aktivit\",\"\")","v":""}," "]
[null,null,"vyber Aktivitu #3",null,null,null,{"$f":"IF(OR(C58=$C$57,C58=$C$56),\"Duplicita Aktivit\",\"\")","v":""}," "]
[null,null,"vyber Aktivitu #4",null,null,null,{"$f":"IF(OR(C59=$C$58,C59=$C$57,C59=$C$56),\"Duplicita Aktivit\",\"\")","v":""}," "]
[null,null,"vyber Aktivitu #5",null,null,null,{"$f":"IF(OR(C60=$C$59,C60=$C$58,C60=$C$57,C60=$C$56),\"Duplicita Aktivit\",\"\")","v":""}," "]
[null,null,null,null,null,null,null," "]
[null,null,"Podaktivity - vyberte všechny další Podaktivity na projektu"]
[null,"hlavní Podaktivita z KR",{"$f":"CHOOSE([1]zdroj!L47,[1]zdroj!M47,[1]zdroj!M48,[1]zdroj!M49,[1]zdroj!M50)","v":"irelevantní"},null,null,null,null," "]
[null,null,"vyber Podaktivitu #2",null,null,null,null,{"$f":"IF(C64=C63,\"Duplicita Podaktivit\",\"\")","v":""}]
[null,null,"vyber Podaktivitu #3",null,null,null,null,{"$f":"IF(OR(C65=C64,C65=C63),\"Duplicita Podaktivit\",\"\")","v":""}]
[null,null,"vyber Podaktivitu #4",null,null,null,null,{"$f":"IF(OR(C66=C65,C66=C64,C66=C63),\"Duplicita Podaktivit\",\"\")","v":""}]
[null,null,null,null,null,null,null," "]

{"sheet":"KR zdroj","index":1,"n_rows":83,"n_cols":20,"rows_kept":83,"cut":false,"hidden":true,"merged":[]}
[{"$f":"OR(C10=2,C10=3,C10=5,C10=6,C10=11)","v":false},null,1,"Vyber Specifický cíl",null,null,null,null,null,null,null,{"$f":"CHOOSE($C$1,1,0,0,0,0,0,0)","v":1},"Vyber nejprve Specifický cíl a poté hlavní Opatření projektu","1_1",null,null,null,"paušál PP"]
[{"$f":"AND(A1=TRUE,C1=6)","v":false},null,2,"1.1 Podpora energetické účinnosti a snižování emisí skleníkových plynů",null,null,null,null,null,null,null,1,"1.1.1 Snížení energetické náročnosti veřejných budov a veřejné infrastruktury","2_1",{"$f":"IF(OR(AND(P2>5,P2<15),P2=16,P2=17,P2=20),1,0)","v":0},1,"mimo Veřejnou podporu",1]
[null,null,null,"1.2 Podpora energie z obnovitelných zdrojů v souladu se směrnicí (EU) 2018/2001, včetně kritérií udržitelnosti stanovených v uvedené směrnici",null,null,null,null,null,null,null,2,"1.1.2 Snížení energetické náročnosti/zvýšení účinnosti technologických procesů","2_2",null,null,"de minimis 360/2012 ",2,null," "]
[null,null,null,"1.3 Podpora přizpůsobení se změně klimatu, prevence rizika katastrof a odolnosti vůči nim s přihlédnutím k ekosystémovým přístupům",null,null,null,null,null,null,null,3,"1.1.3 Zlepšení kvality vnitřního prostředí veřejných budov","2_3",null,null,"de minimis 1407/2013 ",3,null," "]
[null,null,null,"1.4 Podpora přístupu k vodě a udržitelného hospodaření s vodou",null,null,null,null,null,null,null,4,"1.1.4 Zvýšení adaptability veřejných budov na změnu klimatu","2_4",null,null,"de minimis 1408/2013 ",4,null," "]
[null,null,null,"1.5 Podpora přechodu na oběhové hospodářství účinně využívající zdroje",null,null,null,null,null,null,null,5,"1.1.5 Výstavba nových veřejných budov, které budou splňovat parametry pro pasivní nebo plusové budovy","2_5",null,null,"de minimis 717/2014 ",5,null," "]
[null,null,null,"1.6 Posilování ochrany a zachování přírody, biologické rozmanitosti a zelené infrastruktury, a to i v městských oblastech, a snižování všech forem znečištění",null,null,null,null,null,null,null,6,"1.2.1 Výstavba a rekonstrukce obnovitelných zdrojů energie pro veřejné budovy","3_1",null,null,"GBER článek 14",null,null," "]
[null,null,null,null,null,null,null,null,null,null,null,7,"1.2.2 Výstavba a rekonstrukce obnovitelných zdrojů energie pro zajištění dodávek systémové energie ve veřejném sektoru","3_2",null,null,"GBER ŽP článek 36"]
[null,null,null,null,null,null,null,null,null,null,null,8,"1.2.3 Výměna nevyhovujících spalovacích zdrojů na tuhá paliva a pořizování domovních předávacích stanic","3_3",null,null,"GBER ŽP článek 38"]
[null,null,4,{"$f":"CHOOSE($C$1,$M$1,M2,M7,M10,M20,M25,M36)","v":"Vyber nejprve Specifický cíl a poté hlavní Opatření projektu"},null,null,null,null,null,null,null,9,"1.3.1 Podpora přírodě blízkých opatření v krajině a sídlech","4_1",null,null,"GBER ŽP článek 40"]
[null,null,null,{"$f":"CHOOSE($C$1,$M$1,M3,M8,M11,M21,M26,M37)","v":"Vyber nejprve Specifický cíl a poté hlavní Opatření projektu"},null,null,null,null,null,null,null,10,"1.3.2 Zpracování studií a plánů (studie systémů sídelní zeleně, územní studie krajiny, plán územního systému ekologické stability)","4_2",null,null,"GBER ŽP článek 41",null,null," "]
[null,null,null,{"$f":"CHOOSE($C$1,$M$1,M4,M9,M12,M22,M27,M38)","v":"Vyber nejprve Specifický cíl a poté hlavní Opatření projektu"},null,null,null,null,null,null,null,11,"1.3.3 Realizace protipovodňových opatření","4_3",null,null,"GBER ŽP článek 45",null,null," "]
[null,null,null,{"$f":"CHOOSE($C$1,$M$1,M5,\"irelevantní\",M13,M23,M28,M39)","v":"Vyber nejprve Specifický cíl a poté hlavní Opatření projektu"},null,null,null,null,null,null,null,12,"1.3.4 Realizace opatření ke zpomalení odtoku, pro vsak, retenci a akumulaci srážkové vody vč. jejího dalšího využití; realizace zelených střech; opatření na využití šedé vody; opatření pro řízenou dotaci podzemních vod","4_4",null,null,"GBER ŽP článek 46"]
[null,null,null,{"$f":"CHOOSE($C$1,$M$1,M6,\"irelevantní\",M14,M24,M29,M40)","v":"Vyber nejprve Specifický cíl a poté hlavní Opatření projektu"},null,null,null,null,null,null,null,13,"1.3.5 Podpora preventivních opatření proti povodním a suchu, zejména budování, rozšíření, zkvalitnění a obnova monitorovacích, předpovědních, hlásných, výstražných a varovných systémů; zpracování digitálních povodňových plánů, zpracování analýzy odtokových poměrů ","4_5",null,null,"GBER ŽP článek 47"]
[null,null,null,{"$f":"CHOOSE($C$1,$M$1,\"irelevantní\",\"irelevantní\",M15,\"irelevantní\",M30,M41)","v":"Vyber nejprve Specifický cíl a poté hlavní Opatření projektu"},null,null,null,null,"kurz euro Kč",null,null,14,"1.3.6 Podpora povodňové operativy, zvyšování povědomí obyvatel o povodňovém riziku, zvyšování resilience citlivých objektů před povodněmi","4_6",null,null,"GBER ŽP článek 49"]
[null,null,null,{"$f":"CHOOSE($C$1,$M$1,\"irelevantní\",\"irelevantní\",M16,\"irelevantní\",M31,M42)","v":"Vyber nejprve Specifický cíl a poté hlavní Opatření projektu"},null,null,null,null,24.739000000000001,null,null,15,"1.3.7 Monitoring a rebilance dlouhodobě využitelných zdrojů podzemních vod pro obce v krystaliniku Českého masivu","4_7",null,null,"GBER článek 53, kulturní infrastruktura ",15]
[null,null,null,{"$f":"CHOOSE($C$1,$M$1,\"irelevantní\",\"irelevantní\",M17,\"irelevantní\",M32,M43)","v":"Vyber nejprve Specifický cíl a poté hlavní Opatření projektu"},null,null,null,null,"https://ec.europa.eu/info/funding-tenders/procedures-guidelines-tenders/information-contractors-and-beneficiaries/exchange-rate-inforeuro_cs",null,null,16,"1.3.8 Obnova stability svahů, stabilizace a sanace extrémních svahových nestabilit vzniklých v důsledku přírodních jevů","4_8",null,null,"GBER článek 55, sportovní infrastruktura"]
[null,null,null,{"$f":"CHOOSE($C$1,$M$1,\"irelevantní\",\"irelevantní\",M18,\"irelevantní\",M33,\"irelevantní\")","v":"Vyber nejprve Specifický cíl a poté hlavní Opatření projektu"},null,null,null,null,null,null,null,17,"1.3.9 Investice do modernizace vzdělávacích environmentálních center zaměřených na změnu klimatu","4_9",null,null,"GBER článek 56, lokální infrastruktura"]
[null,null,null,{"$f":"CHOOSE($C$1,$M$1,\"irelevantní\",\"irelevantní\",M19,\"irelevantní\",M34,\"irelevantní\")","v":"Vyber nejprve Specifický cíl a poté hlavní Opatření projektu"},null,null,null,null,null,null,null,18,"1.3.10 Prevence a řízení antropogenních rizik","4_10",null,null,"SGEI Rozhodnutí Komise ",18]
[null,null,null,{"$f":"CHOOSE($C$1,$M$1,\"irelevantní\",\"irelevantní\",\"irelevantní\",\"irelevantní\",M35,\"irelevantní\")","v":"Vyber nejprve Specifický cíl a poté hlavní Opatření projektu"},null,null,null,null,null,null,null,19,"1.4.1 Výstavba čistíren odpadních vod; dobudování a výstavba kanalizaci ","5_1",null,null,"SGEI Nařízení Evropského parlamentu a Rady (ES) č. 1370/2007 – Doprava ",19]
[null,null,null,null,null,null,null,null,null,null,null,20,"1.4.2 Intenzifikace čistíren odpadních vod za účelem zvýšeného odstraňování specifického znečištění","5_2",null,null,"Pokyny AGRI, Prevence škod způsobených zvláště chráněnými živočišnými druhy "]
[null,null,null,null,null,null,null,null,null,null,null,21,"1.4.3 Opatření omezující vypouštění odpadních vod z odlehčení na kanalizaci (akumulační nádrže, retenční nádrže, chemické předčištění apod.)","5_3"]
[null,{"$f":"IF(AND(C1=4,C10=1),9,IF(AND(C1=7,C10=1),35,IF(AND(C1=7,C10=2),36,0)))","v":0},2,{"$f":"IF($B$23=9,D31,IF($B$23=35,D36,IF($B$23=36,D41,\"irelevantní\")))","v":"irelevantní"},null,null,null,null,null,null,null,22,"1.4.4 Výstavba a modernizace vodovodních přivaděčů a vodovodních řadů; výstavba úpraven vody; výstavba, intenzifikace nebo revitalizace stávajících vodních zdrojů","5_4"]
[null,1,null,{"$f":"IF($B$23=9,D32,IF($B$23=35,D37,IF($B$23=36,D42,\"irelevantní\")))","v":"irelevantní"},null,null,null,null,null,null,null,23,"1.4.5 Intenzifikace úpraven pitné vody","5_5"]
[null,null,null,{"$f":"IF($B$23=9,D33,IF($B$23=35,D38,\"irelevantní\"))","v":"irelevantní"},null,null,null,null,null,null,null,24,"1.5.1 Kompostéry pro předcházení vzniku komunálních odpadů","6_1"]
[null,null,null,{"$f":"IF($B$23=9,D34,IF($B$23=35,D39,\"irelevantní\"))","v":"irelevantní"},null,null,null,null,null,null,null,25,"1.5.2 RE-USE centra pro opětovné použití výrobků včetně aktivit pro opravy a prodlužování životnosti výrobků, podpora prevence vzniku odpadu","6_2",null,4,"DPH uznatelné = Nejsem plátce DPH"]
[null,null,null,{"$f":"IF($B$23=9,D35,IF($B$23=35,D40,\"irelevantní\"))","v":"irelevantní"},null,null,null,null,null,null,null,26,"1.5.3 Budování infrastruktury potravinových bank","6_3",null,null,"DPH neuznatelné = Jsem plátce DPH a mám nárok na odpočet DPH ve vztahu k aktivitám projektu / CN > 5mil eur dle kap. B.1.6.3 PrŽaP"]
[null,null,null,null,null,null,null,null,null,null,null,27,"1.5.4 Podpora prevence vzniku odpadů z jednorázového nádobí nebo jednorázových obalů","6_4",null,null,"DPH uznatelné = Jsem plátce DPH a nemám zákonný nárok na odpočet DPH ve vztahu k aktivitám projektu"]
[null,null,null,null,null,null,null,null,null,null,null,28,"1.5.5 Výstavba a modernizace sběrných dvorů, doplnění a zefektivnění systému odděleného sběru/svozu zejména komunálních odpadů včetně podpory door-to-door systémů a zavádění systémů PAYT (\"Pay-as-You-Throw\")","6_5",null,null,"Vyber"]
[null,null,null,"vyber Aktivitu",null,null,null,null,null,null,null,29,"1.5.6 Podpora třídících a dotřiďovacích systémů (včetně úpravy) pro separaci ostatních odpadů","6_6",null,{"$f":"IF('1) Kumulativní rozpočet'!I21>10000000,\"0,035\",IF('1) Kumulativní rozpočet'!I21>3000000,\",05\",\",07\"))","v":"0,035"},"%PP","7% pod 3 mil"]
[null,null,"9_1","1.3.1.1 Tvorba nových a obnova stávajících přírodě blízkých vodních prvků v krajině včetně sídel",null,null,null,null,null,null,null,30,"1.5.7 Budování zařízení pro úpravu a zpracování čistírenských odpadních kalů z čistíren odpadních vod včetně úpravy vyčištěných odpadních vod pro jejich opětovné využívání","6_7",null,null,null,"5% 3 až 10 mil"]
[null,null,"9_2","1.3.1.2 Tvorba nových a obnova stávajících vegetačních prvků a struktur, včetně opatření proti vodní a větrné erozi",null,null,null,null,null,null,null,31,"1.5.8 Výstavba a modernizace zařízení pro materiálové využití odpadů","6_8",null,{"$f":"IF(OR(C1=4,C1=7),P33,P30)","v":"0,035"},null,"3,5% nad 10 mil"]
[null,null,null,"1.3.1.3 Úprava lesních porostů směrem k přirozené struktuře a druhové skladbě za účelem posílení jejich stability",null,null,null,null,null,null,null,32,"1.5.9 Výstavba a modernizace zařízení pro energetické využití odpadů, včetně bioplynových stanic pro zpracování odpadů","6_9",null,{"$f":"IF('1) Kumulativní rozpočet'!I21>10000000,\"0,05\",\",07\")","v":"0,05"},null,"7% do 10 mil"]
[null,null,null,"1.3.1.4 Zakládání a obnova veřejné sídelní zeleně",null,null,null,null,null,null,null,33,"1.5.10 Budování a modernizace zařízení pro chemickou recyklaci odpadů","6_10",null,"SC 1.3, 1.6",null,"5% nad 10 mil"]
[null,null,null,"1.3.1.5 Odstranění či eliminace negativních funkcí odvodňovacích zařízení v krajině",null,null,null,null,null,null,null,34,"1.5.11 Budování a modernizace zařízení pro sběr a nakládání s nebezpečnými odpady","6_11",null,1,"irelevantní"]
[null,null,"35_1","1.6.1.1 Péče o přírodní stanoviště a druhy, opatření na podporu ohrožených druhů",null,null,null,null,null,null,null,35,"1.6.1 Podpora přírodních stanovišť a druhů a péče o nejcennější části přírody a krajiny","7_1",null,null,"Malý podnik"]
[null,null,null,"1.6.1.2 Péče o chráněná území (přírodní dědictví) ",null,null,null,null,null,null,null,36,"1.6.2 Zprůchodnění migračních překážek pro živočichy","7_2",null,null,"Střední podnik"]
[null,null,null,"1.6.1.3 Omezení šíření invazních nepůvodních a expanzivních druhů",null,null,null,null,null,null,null,37,"1.6.3 Modernizace a rozvoj záchranných stanic a záchranných center CITES pro ohrožené druhy živočichů","7_3",null,null,"Velký podnik"]
[null,null,null,"1.6.1.4 Monitoring ekosystémů, stanovišť a druhů, sběr podkladů, zpracování koncepčních dokumentů pro péči o chráněná území, zajištění územní ochrany chráněných území (přírodního dědictví",null,null,null,null,null,null,null,38,"1.6.4 Náhrada nebo rekonstrukce stacionárních zdrojů znečišťování ovzduší včetně realizace dodatečných technologií a změny technologických postupů","7_4"]
[null,null,null,"1.6.1.5 Návštěvnická infrastruktura sloužící k usměrnění návštěvníků v chráněných územích a zvýšení povědomí o problematice ochrany přírody",null,null,null,null,null,null,null,39,"1.6.5 Pořízení a modernizace systémů pro posuzování a vyhodnocení úrovně znečištění ovzduší a souvisejících meteorologických aspektů a pořízení a modernizace systémů pro archivaci a zpracování údajů o znečišťování ovzduší","7_5",null,{"$f":"CHOOSE(P26,'1) Kumulativní rozpočet'!F25-'1) Kumulativní rozpočet'!G25*(1+('1) Kumulativní rozpočet'!E25/100)),'1) Kumulativní rozpočet'!D25-'1) Kumulativní rozpočet'!G25,'1) Kumulativní rozpočet'!F25-'1) Kumulativní rozpočet'!G25*(1+('1) Kumulativní rozpočet'!E25/100)))","v":{"$error":"#VALUE!"}},"CZN PP VP",{"$f":"P40","v":{"$error":"#VALUE!"}}]
[null,null,null,"1.6.2.1 Zprůchodnění migračních překážek pro vodní živočichy a opatření k omezování jejich úmrtnosti",null,null,null,null,null,null,null,40,"1.6.6 Pořízení a náhrada monitorovacích systémů pro kontinuální měření emisí znečišťujících látek včetně pořízení on-line systémů k jejich prezentaci","7_6",null,{"$f":"IF((P32*('1) Kumulativní rozpočet'!I18))>15000000,15000000,(P32*('1) Kumulativní rozpočet'!I16+'1) Kumulativní rozpočet'!I18)))","v":{"$error":"#VALUE!"}},"% CZN max",{"$f":"P41","v":{"$error":"#VALUE!"}},{"$f":"R40-R41","v":{"$error":"#VALUE!"}},{"$f":"S41*1.21","v":{"$error":"#VALUE!"}}]
[null,null,null,"1.6.2.2 Zprůchodnění migračních překážek pro suchozemské živočichy a opatření k omezování jejich úmrtnosti",null,null,null,null,null,null,null,41,"1.6.7 Průzkum rozsahu znečištění horninového prostředí a rizik s ním spojených, včetně návrhu efektivního řešení","7_7"]
[null,null,null,null,null,null,null,null,null,null,null,42,"1.6.8 Odstranění rizik kontaminace ohrožující lidské zdraví, vodní zdroje nebo ekosystémy a rekultivace starých skládek","7_8",null,10000,21,{"$f":"P43*(1+(Q43/100))","v":12100},{"$f":"P43*(1+(Q43/100))+IF(P40>P41,P40-P41,0)","v":{"$error":"#VALUE!"}}]
[]
[null,null,null,"vyber Podaktivitu",null,null,null,null,null,null,null,null,null,null,null,null,null,null,{"$f":"P43*(Q43/100)+P43+IF(P40>P41,P40-P41,0)","v":{"$error":"#VALUE!"}}]
[null,null,null,"1.3.1.1.1 Vytváření a obnova tůní (mokřadů)"]
[null,null,null,"1.3.1.1.2 Malé vodní nádrže (MVN)",null,null,null,null,null,null,null,1,{"$f":"IF(AND($B$23=9,$B$24=1),D46,IF(AND($B$23=9,$B$24=2),D50,IF(AND($B$23=35,$B$24=1),D52,\"irelevantní\")))","v":"irelevantní"}]
[null,null,null,"1.3.1.1.3 Revitalizace a renaturace vodních toků a niv",null,null,null,null,null,null,null,null,{"$f":"IF(AND($B$23=9,$B$24=1),D47,IF(AND($B$23=9,$B$24=2),D51,IF(AND($B$23=35,$B$24=1),D53,\"irelevantní\")))","v":"irelevantní"}]
[null,null,null,"1.3.1.1.4 Nákup pozemků pro podporu renaturačních procesů a revitalizací vodních toků",null,null,null,null,null,null,null,null,{"$f":"IF(AND($B$23=9,$B$24=1),D48,\"irelevantní\")","v":"irelevantní"}]
[null,null,null,"1.3.1.2.1 Vegetační krajinné prvky (včetně skladebných prvků ÚSES)",null,null,null,null,null,null,null,null,{"$f":"IF(AND($B$23=9,$B$24=1),D49,\"irelevantní\")","v":"irelevantní"}]
[null,null,null,"1.3.1.2.2 Zavádění půdoochranných technologií"]
[null,null,null,"1.6.1.1.1 Péče o přírodní stanoviště a druhy, opatření na podporu ohrožených druhů"]
[null,null,null,"1.6.1.1.2 Předcházení, minimalizace a náprava škod způsobených vybranými zvláště chráněnými druhy živočichů"]
[]
[]
[{"$f":"IF(B56=TRUE,1,0)","v":0},false,"více opatření"]
[{"$f":"IF(B57=TRUE,1,0)","v":0},false,"více aktivit"]
[0,false,"více podaktivit",2,null,null,null,6,null,null,9]
[null,null,null,"vyber Opatření #2","vyber Opatření #3","vyber Opatření #4","vyber Opatření #5","vyber Opatření #6","vyber Opatření #7","vyber Opatření #8","vyber Opatření #9","vyber Opatření #10","vyber Opatření #11",null,null,{"$f":"[1]KR!C52","v":"vyber Opatření #2"},{"$f":"IF(P59=\"vyber Opatření #2\",0,1)","v":0}]
[null,null,null,{"$f":"CHOOSE($C$1,\"\",$M$2,$M$7,$M$10,$M$20,$M$25,$M$36)","v":""},"","","","","","","","","",null,null,{"$f":"[1]KR!C53","v":"vyber Opatření #3"},{"$f":"IF(P60=\"vyber Opatření #3\",0,1)","v":0}]
[null,null,null,{"$f":"CHOOSE($C$1,\"\",$M$3,$M$8,$M$11,$M$21,$M$26,$M$37)","v":""},"","","","","","","","","",null,null,{"$f":"[1]KR!C54","v":"vyber Opatření #4"},{"$f":"IF(P61=\"vyber Opatření #4\",0,1)","v":0}]
[null,null,null,{"$f":"CHOOSE($C$1,\"\",$M$4,$M$9,$M$12,$M$22,$M$27,$M$38)","v":""},"","","","","","","","","",null,null,{"$f":"[1]KR!C55","v":"vyber Opatření #5"},{"$f":"IF(P62=\"vyber Opatření #5\",0,1)","v":0}]
[null,null,null,{"$f":"CHOOSE($C$1,\"\",\"\",\"\",$M$13,$M$23,$M$28,$M$39)","v":""},"","","","","","","","","",null,null,null,{"$f":"SUM(Q59:Q62)","v":0}]
[null,null,null,{"$f":"CHOOSE($C$1,\"\",\"\",\"\",$M$14,$M$24,$M$29,$M$40)","v":""},"","","","","","","","","",null,null," "]
[null,null,null,{"$f":"CHOOSE($C$1,\"\",\"\",\"\",$M$15,\"\",$M$30,$M$41)","v":""},"","","","","","","","","",null,null,{"$f":"[1]KR!C65","v":"vyber Aktivitu #2"},{"$f":"IF(P65=\"vyber Aktivitu #2\",0,1)","v":0}]
[null,null,null,{"$f":"CHOOSE($C$1,\"\",\"\",\"\",$M$16,\"\",$M$31,$M$42)","v":""},"","","","","","","","","",null,null,{"$f":"[1]KR!C66","v":"vyber Aktivitu #3"},{"$f":"IF(P66=\"vyber Aktivitu #3\",0,1)","v":0}]
[null,null,null,{"$f":"CHOOSE($C$1,\"\",\"\",\"\",$M$17,\"\",$M$32,$M$43)","v":""},"","","","","","","","","",null,null,{"$f":"[1]KR!C67","v":"vyber Aktivitu #4"},{"$f":"IF(P67=\"vyber Aktivitu #4\",0,1)","v":0}]
[null,null,null,{"$f":"CHOOSE($C$1,\"\",\"\",\"\",$M$18,\"\",$M$33,\"\")","v":""},"","","","","","","","","",null,null,{"$f":"[1]KR!C68","v":"vyber Aktivitu #5"},{"$f":"IF(P68=\"vyber Aktivitu #5\",0,1)","v":0}]
[null,null,null,{"$f":"CHOOSE($C$1,\"\",\"\",\"\",$M$19,\"\",$M$34,\"\")","v":""},"","","","","","","","","",null,null,null,{"$f":"SUM(Q65:Q68)","v":0}]
[null,null,null,{"$f":"CHOOSE($C$1,\"\",\"\",\"\",\"\",\"\",$M$35,\"\")","v":""},"","","","","","","","","",null,null," "]
[null,null,null,null,null,null,null,null,null,null,null,null,null,null,null,{"$f":"[1]KR!C72","v":"vyber Podaktivitu #2"},{"$f":"IF(P71=\"vyber Podaktivitu #2\",0,1)","v":0}]
[null,null,null,"vyber Aktivitu #2","vyber Aktivitu #3","vyber Aktivitu #4","vyber Aktivitu #5",null,null,null,null,null,null,null,null,{"$f":"[1]KR!C73","v":"vyber Podaktivitu #3"},{"$f":"IF(P72=\"vyber Podaktivitu #3\",0,1)","v":0}]
[null,null,null,{"$f":"IF($B$23=9,$D$31,IF($B$23=35,$D$36,IF($B$23=36,$D$41,\"\")))","v":""},{"$f":"IF($B$23=9,$D$31,IF($B$23=35,$D$36,IF($B$23=36,$D$41,\"\")))","v":""},{"$f":"IF($B$23=9,$D$31,IF($B$23=35,$D$36,IF($B$23=36,$D$41,\"\")))","v":""},{"$f":"IF($B$23=9,$D$31,IF($B$23=35,$D$36,IF($B$23=36,$D$41,\"\")))","v":""},null,null,null,null,null,null,null,null,{"$f":"[1]KR!C74","v":"vyber Podaktivitu #4"},{"$f":"IF(P73=\"vyber Podaktivitu #4\",0,1)","v":0}]
[null,null,null,{"$f":"IF($B$23=9,$D$32,IF($B$23=35,$D$37,IF($B$23=36,$D$42,\"\")))","v":""},{"$f":"IF($B$23=9,$D$32,IF($B$23=35,$D$37,IF($B$23=36,$D$42,\"\")))","v":""},{"$f":"IF($B$23=9,$D$32,IF($B$23=35,$D$37,IF($B$23=36,$D$42,\"\")))","v":""},{"$f":"IF($B$23=9,$D$32,IF($B$23=35,$D$37,IF($B$23=36,$D$42,\"\")))","v":""},null,null,null,null,null,null,null,null,null,{"$f":"SUM(Q71:Q73)","v":0}]
[null,null,null,{"$f":"IF($B$23=9,$D$33,IF($B$23=35,$D$38,\"\"))","v":""},{"$f":"IF($B$23=9,$D$33,IF($B$23=35,$D$38,\"\"))","v":""},{"$f":"IF($B$23=9,$D$33,IF($B$23=35,$D$38,\"\"))","v":""},{"$f":"IF($B$23=9,$D$33,IF($B$23=35,$D$38,\"\"))","v":""}]
[null,null,null,{"$f":"IF($B$23=9,$D$34,IF($B$23=35,$D$39,\"\"))","v":""},{"$f":"IF($B$23=9,$D$34,IF($B$23=35,$D$39,\"\"))","v":""},{"$f":"IF($B$23=9,$D$34,IF($B$23=35,$D$39,\"\"))","v":""},{"$f":"IF($B$23=9,$D$34,IF($B$23=35,$D$39,\"\"))","v":""}]
[null,null,null,{"$f":"IF($B$23=9,$D$35,IF($B$23=35,$D$40,\"\"))","v":""},{"$f":"IF($B$23=9,$D$35,IF($B$23=35,$D$40,\"\"))","v":""},{"$f":"IF($B$23=9,$D$35,IF($B$23=35,$D$40,\"\"))","v":""},{"$f":"IF($B$23=9,$D$35,IF($B$23=35,$D$40,\"\"))","v":""}]
[]
[null,null,null,"vyber Podaktivitu #2","vyber Podaktivitu #3","vyber Podaktivitu #4"]
[null,null,null,{"$f":"IF(AND($B$23=9,$B$24=1),$D$46,IF(AND($B$23=9,$B$24=2),$D$50,IF(AND($B$23=35,$B$24=1),$D$52,\"irelevantní\")))","v":"irelevantní"},{"$f":"IF(AND($B$23=9,$B$24=1),$D$46,IF(AND($B$23=9,$B$24=2),$D$50,IF(AND($B$23=35,$B$24=1),$D$52,\"irelevantní\")))","v":"irelevantní"},{"$f":"IF(AND($B$23=9,$B$24=1),$D$46,IF(AND($B$23=9,$B$24=2),$D$50,IF(AND($B$23=35,$B$24=1),$D$52,\"irelevantní\")))","v":"irelevantní"}]
[null,null,null,{"$f":"IF(AND($B$23=9,$B$24=1),$D$47,IF(AND($B$23=9,$B$24=2),$D$51,IF(AND($B$23=35,$B$24=1),$D$53,\"irelevantní\")))","v":"irelevantní"},{"$f":"IF(AND($B$23=9,$B$24=1),$D$47,IF(AND($B$23=9,$B$24=2),$D$51,IF(AND($B$23=35,$B$24=1),$D$53,\"irelevantní\")))","v":"irelevantní"},{"$f":"IF(AND($B$23=9,$B$24=1),$D$47,IF(AND($B$23=9,$B$24=2),$D$51,IF(AND($B$23=35,$B$24=1),$D$53,\"irelevantní\")))","v":"irelevantní"}]
[null,null,null,{"$f":"IF(AND($B$23=9,$B$24=1),$D$48,\"\")","v":""},{"$f":"IF(AND($B$23=9,$B$24=1),$D$48,\"\")","v":""},{"$f":"IF(AND($B$23=9,$B$24=1),$D$48,\"\")","v":""}]
[null,null,null,{"$f":"IF(AND($B$23=9,$B$24=1),$D$49,\"\")","v":""},{"$f":"IF(AND($B$23=9,$B$24=1),$D$49,\"\")","v":""},{"$f":"IF(AND($B$23=9,$B$24=1),$D$49,\"\")","v":""}]

{"sheet":"KR výstup","index":2,"n_rows":36,"n_cols":4,"rows_kept":36,"cut":false,"hidden":true,"merged":[]}
[]
[]
[null,null,"Název žadatele:",{"$f":"[1]KR!C5","v":0}]
[null,null,"Název projektu:",{"$f":"[1]KR!C6","v":0}]
[null,null,"Specifický cíl:",{"$f":"CHOOSE([1]zdroj!C1,[1]zdroj!D1,[1]zdroj!D2,[1]zdroj!D3,[1]zdroj!D4,[1]zdroj!D5,[1]zdroj!D6,[1]zdroj!D7)","v":"Vyber Specifický cíl"}]
[null,null,"Veřejná podpora:",{"$f":"CHOOSE([1]zdroj!P2,[1]zdroj!Q2,[1]zdroj!Q3,[1]zdroj!Q4,[1]zdroj!Q5,[1]zdroj!Q6,[1]zdroj!Q7,[1]zdroj!Q8,[1]zdroj!Q9,[1]zdroj!Q10,[1]zdroj!Q11,[1]zdroj!Q12,[1]zdroj!Q13,[1]zdroj!Q14,[1]zdroj!Q15,[1]zdroj!Q16,[1]zdroj!Q17,[1]zdroj!Q18,[1]zdroj!Q19,[1]zdroj!Q20,[1]zdroj!Q21)","v":"mimo Veřejnou podporu"}]
[null,null,"DPH uznatelnost:",{"$f":"CHOOSE([1]zdroj!P26,[1]zdroj!Q26,[1]zdroj!Q27,[1]zdroj!Q28,[1]zdroj!Q29)","v":"Vyber"}]
[null,null,"Velikost podniku:",{"$f":"CHOOSE([1]zdroj!P35,[1]zdroj!Q35,[1]zdroj!Q36,[1]zdroj!Q37,[1]zdroj!Q38)","v":"irelevantní"}]
[null,null,"Celkové náklady projektu",{"$f":"[1]KR!$D$29","v":"zadej výdaje/DPH"}]
[null,null,"Celkové způsobilé výdaje projeku",{"$f":"[1]KR!D30","v":"zadej výdaje/DPH"}]
[null,null,"Celkové nezpůsobilé výdaje projetku",{"$f":"[1]KR!D31","v":"zadej výdaje/DPH"}]
[null,null,"Opatření specifického cíle (hlavní)",{"$f":"[1]KR!C51","v":"Vyber nejprve Specifický cíl a poté hlavní Opatření projektu"}]
[null,null,"Opatření #2",{"$f":"[1]KR!C52","v":"vyber Opatření #2"}]
[null,null,"Opatření #3",{"$f":"[1]KR!C53","v":"vyber Opatření #3"}]
[null,null,"Opatření #4",{"$f":"[1]KR!C54","v":"vyber Opatření #4"}]
[null,null,"Opatření #5",{"$f":"[1]KR!C55","v":"vyber Opatření #5"}]
[null,null,"Opatření #6",{"$f":"[1]KR!C56","v":"vyber Opatření #6"}]
[null,null,"Opatření #7",{"$f":"[1]KR!C57","v":"vyber Opatření #7"}]
[null,null,"Opatření #8",{"$f":"[1]KR!C58","v":"vyber Opatření #8"}]
[null,null,"Opatření #9",{"$f":"[1]KR!C59","v":"vyber Opatření #9"}]
[null,null,"Opatření #10",{"$f":"[1]KR!C60","v":"vyber Opatření #10"}]
[null,null,"Opatření #11",{"$f":"[1]KR!C61","v":"vyber Opatření #11"}]
[null,null,"Aktivita (hlavní)",{"$f":"[1]KR!C64","v":"irelevantní"}]
[null,null,"Aktivita #2",{"$f":"[1]KR!C65","v":"vyber Aktivitu #2"}]
[null,null,"Aktivita #3",{"$f":"[1]KR!C66","v":"vyber Aktivitu #3"}]
[null,null,"Aktivita #4",{"$f":"[1]KR!C67","v":"vyber Aktivitu #4"}]
[null,null,"Aktivita #5",{"$f":"[1]KR!C68","v":"vyber Aktivitu #5"}]
[null,null,"Podaktivita (hlavní)",{"$f":"[1]KR!C71","v":"irelevantní"}]
[null,null,"Podaktivita #2",{"$f":"[1]KR!C72","v":"vyber Podaktivitu #2"}]
[null,null,"Podaktivita #3",{"$f":"[1]KR!C73","v":"vyber Podaktivitu #3"}]
[null,null,"Podaktivita #4",{"$f":"[1]KR!C74","v":"vyber Podaktivitu #4"}]
[null,null,"ISKP Přímé inv. a neinv. náklady do limitu PS bez VP či VP s výpočtem paušálu (řádky 1.1.1.1 + 1.1.1.2)",{"$f":"[1]KR!F41","v":"zadej výdaje/DPH"}]
[null,null,"ISKP Přímé inv. a neinv. náklady nad limit PS bez VP či VP s výpočtem paušálu nebo Přímé inv. a neinv. náklady s VP bez  výpočtu paušálu (řádky 1.1.3 a 1.1.4)",{"$f":"[1]KR!F42","v":"zadej výdaje/DPH"}]
[null,null,"ISKP Nezpůsobilé inv. a neinv. náklady bez ohledu na VP (řádky 1.2.5 a 1.2.6)",{"$f":"[1]KR!F43","v":"zadej výdaje/DPH"}]
[null,null,"Paušální sazba (bez VP či VP s výpočtem paušálu)",{"$f":"[1]KR!I25","v":0}]
[null,null,"\"Projektová příprava\" dle skutečných nákladů s limitem dle PS pro VP",{"$f":"[1]KR!I28","v":0}]

{"sheet":"2) Stanovení jednotkové podpory","index":3,"n_rows":129,"n_cols":13,"rows_kept":129,"cut":false,"hidden":false,"merged":[[0,2,1,5],[23,3,23,5],[48,4,48,5],[95,1,95,3],[103,1,104,1],[94,4,94,5],[63,4,63,5],[75,4,75,5],[76,1,76,3],[51,1,53,1],[84,1,85,1],[113,4,113,5],[118,3,118,5],[2,2,2,4],[3,2,3,4],[24,0,24,1],[54,2,56,2],[57,2,59,2],[70,2,71,2],[28,1,29,1],[30,1,31,1],[34,1,35,1],[36,1,39,1],[70,1,71,1],[54,1,59,1],[116,3,116,5]]}
["Identifikace projektu",null,"Poznámka k vyplnění: Tabulka je optimalizována pro MS Excel 2010 a vyšší. Použití starší verze či jiného programu může způsobit problémy. Editujte pouze zelené buňky a zaškrtávací políčka, vybírejte z rozbalovacích menu. Řiďte se informacemi označenými červeným trojúhelníkem v pravém horním rohu buněk."]
[]
[null,"Název žadatele",{"$f":"'1) Kumulativní rozpočet'!C5:F5","v":0}]
[null,"Název projektu",{"$f":"'1) Kumulativní rozpočet'!C6:F6","v":0}]
[null,"Číslo výzvy",11]
[null,"Hodnota koeficientu k2",1.1000000000000001]
[null,"Památkově chráněná budova","NE"]
[null,"Budova sloužící pro výchovu a vzdělávání dětí a mladistvých","NE"]
[null,"DPH je v rámci projektu způsobilým výdajem",{"$f":"IF('KR zdroj'!$P$26=4,\"Nezvoleno na 1. listu\",IF('KR zdroj'!$P$26=2,\"NE\",\"ANO\"))","v":"Nezvoleno na 1. listu"}]
[null,"Stanovte příslušnou procentní výši DPH pro realizaci",{"$f":"'1) Kumulativní rozpočet'!E16/100","v":0.21}]
["Obecné parametry - stanovení míry kvality renovace"]
[null,null,null,null,"hodnota","jednotka"]
[null,"Spotřeba primární energie z neobnovitelných zdrojů - stav před realizací navržených opatření",null,null,null,"kWh/rok"]
[null,"Spotřeba primární energie z neobnovitelných zdrojů - stav po realizaci navržených opatření",null,null,null,"kWh/rok"]
[null,"Spotřeba primární energie z neobnovitelných zdrojů dle PENB pro referenční budovu - stav po realizaci navržených opatření",null,null,null,"kWh/rok"]
[null,"Průměrný součinitel prostupu tepla obálky budovy - stav po realizaci navržených opatření",null,null,null,"W.m-2.K-1"]
[null,"Požadovaný součinitel prostupu tepla obálky referenční budovy - stav po realizaci navržených opatření",null,null,null,"W.m-2.K-1"]
[null,"Nejvyšší podíl hodnoty součinitele prostupu tepla měněných stavebních prvků vyjma oken, na něž se vztahuje podpora, vůči příslušné požadované hodnotě součinitele prostupu tepla pro danou konstrukci",null,null,null,"%"]
[null,"Nejvyšší podíl hodnoty součinitele prostupu tepla měněných oken, na něž se vztahuje podpora, vůči příslušné požadované hodnotě součinitele prostupu tepla pro danou konstrukci",null,null,null,"%"]
[null,"Nejvyšší dosažená denní teplota vzduchu v referenční místnosti v letním období po realizaci navržených opatření",null,null,null,"°C"]
[null,"Nejvyšší přípustná denní teplota vzduchu v referenční místnosti v letním období po realizaci navržených opatření",null,null,null,"°C"]
[null,"Nejvyšší dosažená koncentrace CO2 v pobytových místnostech po realizaci navržených opatření",null,null,null,"ppm"]
[]
[null,"Výsledná míra kvality renovace",null,{"$f":"IF(OR(AND($A$77=TRUE,$A$26=FALSE),AND($A$96=TRUE,$A$26=FALSE)),\"A2\",IF('SJP Pomocné hodnoty'!$J$2=1,IF(OR(E13=\"\",E14=\"\",E15=\"\",E16=\"\",E17=\"\",E18=\"\",E19=\"\",E20=\"\",E21=\"\"),\"Nejsou vyplněny všechny nezbytné obecné parametry!\",IF(AND((E13-E14)/E13>=0.4,E14/E15<=0.7,E16/E17<=0.8,E18<=100,E19<=60,E20<=E21),\"A2\",IF(OR((E13-E14)/E13<0.3,E14/E15>0.85,E16/E17>0.95,E18>100,E19>60,E20>E21),\"Technicky nedořešeno!\",\"A1\"))),IF('SJP Pomocné hodnoty'!$J$2=2,IF(OR(E13=\"\",E14=\"\",E15=\"\",E16=\"\",E17=\"\",E18=\"\",E19=\"\",E20=\"\",E21=\"\",E22=\"\"),\"Nejsou vyplněny všechny nezbytné obecné parametry!\",IF(AND((E13-E14)/E13>=0.4,E14/E15<=0.7,E16/E17<=0.8,E18<=100,E19<=60,E20<=E21,E22<=1500),\"A2\",IF(OR((E13-E14)/E13<0.3,E14/E15>0.85,E16/E17>0.95,E18>100,E19>60,E20>E21,E22>1500),\"Technicky nedořešeno!\",\"A1\"))),IF('SJP Pomocné hodnoty'!$J$2=3,IF(OR(E13=\"\",E14=\"\",E18=\"\",E19=\"\",E20=\"\",E21=\"\"),\"Nejsou vyplněny všechny nezbytné obecné parametry!\",IF(AND((E13-E14)/E13>=0.4,E18<=100,E19<=60,E20<=E21),\"A2\",IF(OR((E13-E14)/E13<0.3,E18>100,E19>60,E20>E21),\"Technicky nedořešeno!\",\"A1\"))),IF('SJP Pomocné hodnoty'!$J$2=4,IF(OR(E13=\"\",E14=\"\",E18=\"\",E19=\"\",E20=\"\",E21=\"\",E22=\"\"),\"Nejsou vyplněny všechny nezbytné obecné parametry!\",IF(AND((E13-E14)/E13>=0.4,E18<=100,E19<=60,E20<=E21,E22<=1500),\"A2\",IF(OR((E13-E14)/E13<0.3,E18>100,E19>60,E20>E21,E22>1500),\"Technicky nedořešeno!\",\"A1\"))),IF('SJP Pomocné hodnoty'!$J$2>4,IF(OR($E$13=\"\",$E$14=\"\"),\"Nejsou vyplněny všechny nezbytné obecné parametry!\",IF(AND(($E$13-$E$14)/$E$13>=0.4),\"A2\",IF(OR(($E$13-$E$14)/$E$13<0.3),\"Technicky nedořešeno!\",\"A1\")))))))))","v":"Nejsou vyplněny všechny nezbytné obecné parametry!"}]
[]
[false,"1.1.1 Snížení energetické náročnosti veřejných budov a veřejné infrastruktury"]
[null,null,null,null,"hodnota","jednotka","jednotkový náklad bez DPH","k1","k2","k3","jednotková dotace za opatření bez DPH","celková dotace za opatření bez DPH","Způsobilé přímérealizační výdaje"]
[null,"Plocha zateplovaných obvodových stěn",null,false,null,"m2",{"$f":"'SJP Pomocné hodnoty'!F17","v":4200},{"$f":"IF($D$28=TRUE,'SJP Pomocné hodnoty'!G17+'SJP Pomocné hodnoty'!H17,'SJP Pomocné hodnoty'!G17)","v":1},{"$f":"'SJP Pomocné hodnoty'!R17","v":1.1000000000000001},{"$f":"IF($D$24=\"A1\",'SJP Pomocné hodnoty'!S17,IF($D$24=\"A2\",'SJP Pomocné hodnoty'!T17,0))","v":0},{"$f":"G28*H28*I28*J28","v":0},{"$f":"E28*K28","v":0},{"$f":"E28*G28*H28*I28","v":0}]
[null,"Plocha měněných otvorových výplní (oken a dveří)","mimo LOP",false,null,"m2",{"$f":"'SJP Pomocné hodnoty'!F18","v":8900},{"$f":"IF($D$28=TRUE,'SJP Pomocné hodnoty'!G18+'SJP Pomocné hodnoty'!H18,'SJP Pomocné hodnoty'!G18)","v":1},{"$f":"'SJP Pomocné hodnoty'!R18","v":1.1000000000000001},{"$f":"IF($D$24=\"A1\",'SJP Pomocné hodnoty'!S18,IF($D$24=\"A2\",'SJP Pomocné hodnoty'!T18,0))","v":0},{"$f":"G29*H29*I29*J29","v":0},{"$f":"E29*K29","v":0},{"$f":"E29*G29*H29*I29","v":0}]
[null,null,"LOP",false,null,"m2",{"$f":"'SJP Pomocné hodnoty'!F19","v":8900},{"$f":"IF($D$28=TRUE,'SJP Pomocné hodnoty'!G19+'SJP Pomocné hodnoty'!H19,'SJP Pomocné hodnoty'!G19)","v":1.3},{"$f":"'SJP Pomocné hodnoty'!R19","v":1.1000000000000001},{"$f":"IF($D$24=\"A1\",'SJP Pomocné hodnoty'!S19,IF($D$24=\"A2\",'SJP Pomocné hodnoty'!T19,0))","v":0},0,0,0]
[null,"Plocha zateplovaných plochých či šikmých střech","nová skladba včetně paro a hydroizolace",false,null,"m2",{"$f":"'SJP Pomocné hodnoty'!F20","v":3200},{"$f":"IF($D$28=TRUE,'SJP Pomocné hodnoty'!G20+'SJP Pomocné hodnoty'!H20,'SJP Pomocné hodnoty'!G20)","v":1},{"$f":"'SJP Pomocné hodnoty'!R20","v":1.1000000000000001},{"$f":"IF($D$24=\"A1\",'SJP Pomocné hodnoty'!S20,IF($D$24=\"A2\",'SJP Pomocné hodnoty'!T20,0))","v":0},0,0,0]
[null,null,"pouze tepelná vrstva bez paro a hydroizolace",false,null,"m2",{"$f":"'SJP Pomocné hodnoty'!F21","v":3200},{"$f":"IF($D$28=TRUE,'SJP Pomocné hodnoty'!G21+'SJP Pomocné hodnoty'!H21,'SJP Pomocné hodnoty'!G21)","v":0.2},{"$f":"'SJP Pomocné hodnoty'!R21","v":1.1000000000000001},{"$f":"IF($D$24=\"A1\",'SJP Pomocné hodnoty'!S21,IF($D$24=\"A2\",'SJP Pomocné hodnoty'!T21,0))","v":0},0,0,0]
[null,"Plocha zateplovaných podlah na zemině",null,false,null,"m2",{"$f":"'SJP Pomocné hodnoty'!F22","v":4000},{"$f":"IF($D$28=TRUE,'SJP Pomocné hodnoty'!G22+'SJP Pomocné hodnoty'!H22,'SJP Pomocné hodnoty'!G22)","v":1},{"$f":"'SJP Pomocné hodnoty'!R22","v":1.1000000000000001},{"$f":"IF($D$24=\"A1\",'SJP Pomocné hodnoty'!S22,IF($D$24=\"A2\",'SJP Pomocné hodnoty'!T22,0))","v":0},0,0,0]
[null,"Plocha zateplovaných konstrukcí k nevytápěným prostorům",null,false,null,"m2",{"$f":"'SJP Pomocné hodnoty'!F23","v":1200},{"$f":"IF($D$28=TRUE,'SJP Pomocné hodnoty'!G23+'SJP Pomocné hodnoty'!H23,'SJP Pomocné hodnoty'!G23)","v":1},{"$f":"'SJP Pomocné hodnoty'!R23","v":1.1000000000000001},{"$f":"IF($D$24=\"A1\",'SJP Pomocné hodnoty'!S23,IF($D$24=\"A2\",'SJP Pomocné hodnoty'!T23,0))","v":0},0,0,0]
[null,"Celkový výkon nově instalovaných systémů nuceného větrání  - výukové prostory vzdělávacích budov","výkon na jednotku do 1500 m3",null,null,"počet žáků",{"$f":"'SJP Pomocné hodnoty'!F24","v":9800},{"$f":"IF($D$28=TRUE,'SJP Pomocné hodnoty'!G24+'SJP Pomocné hodnoty'!H24,'SJP Pomocné hodnoty'!G24)","v":0.6},{"$f":"'SJP Pomocné hodnoty'!R24","v":1.1000000000000001},{"$f":"IF($D$24=\"A1\",'SJP Pomocné hodnoty'!S24,IF($D$24=\"A2\",'SJP Pomocné hodnoty'!T24,0))","v":0},0,0,0]
[null,null,"výkon na jednotku nad 1500 m3",null,null,"počet žáků",{"$f":"'SJP Pomocné hodnoty'!F25","v":9800},{"$f":"IF($D$28=TRUE,'SJP Pomocné hodnoty'!G25+'SJP Pomocné hodnoty'!H25,'SJP Pomocné hodnoty'!G25)","v":1},{"$f":"'SJP Pomocné hodnoty'!R25","v":1.1000000000000001},{"$f":"IF($D$24=\"A1\",'SJP Pomocné hodnoty'!S25,IF($D$24=\"A2\",'SJP Pomocné hodnoty'!T25,0))","v":0},0,0,0]
[null,"Celkový výkon nově instalovaných systémů nuceného větrání s rekuperací - ostatní","výkon na jednotku do 1500 m3",null,null,"m3/hod",{"$f":"'SJP Pomocné hodnoty'!F26","v":390},{"$f":"IF($D$28=TRUE,'SJP Pomocné hodnoty'!G26+'SJP Pomocné hodnoty'!H26,'SJP Pomocné hodnoty'!G26)","v":0.6},{"$f":"'SJP Pomocné hodnoty'!R26","v":1.1000000000000001},{"$f":"IF($D$24=\"A1\",'SJP Pomocné hodnoty'!S26,IF($D$24=\"A2\",'SJP Pomocné hodnoty'!T26,0))","v":0},0,0,0]
[null,null,"výkon na jednotku nad 1500 m3 - regulace průtoku ON/OFF",null,null,"m3/hod",{"$f":"'SJP Pomocné hodnoty'!F27","v":390},{"$f":"IF($D$28=TRUE,'SJP Pomocné hodnoty'!G27+'SJP Pomocné hodnoty'!H27,'SJP Pomocné hodnoty'!G27)","v":0.5},{"$f":"'SJP Pomocné hodnoty'!R27","v":1.1000000000000001},{"$f":"IF($D$24=\"A1\",'SJP Pomocné hodnoty'!S27,IF($D$24=\"A2\",'SJP Pomocné hodnoty'!T27,0))","v":0},0,0,0]
[null,null,"výkon na jednotku nad 1500 m3 - regulace průtoku dle času, % výkonu jednotky a ostatní neuvedené",null,null,"m3/hod",{"$f":"'SJP Pomocné hodnoty'!F28","v":390},{"$f":"IF($D$28=TRUE,'SJP Pomocné hodnoty'!G28+'SJP Pomocné hodnoty'!H28,'SJP Pomocné hodnoty'!G28)","v":0.7},{"$f":"'SJP Pomocné hodnoty'!R28","v":1.1000000000000001},{"$f":"IF($D$24=\"A1\",'SJP Pomocné hodnoty'!S28,IF($D$24=\"A2\",'SJP Pomocné hodnoty'!T28,0))","v":0},0,0,0]
[null,null,"výkon na jednotku nad 1500 m3 - plynulá regulace, např. CO2",null,null,"m3/hod",{"$f":"'SJP Pomocné hodnoty'!F29","v":390},{"$f":"IF($D$28=TRUE,'SJP Pomocné hodnoty'!G29+'SJP Pomocné hodnoty'!H29,'SJP Pomocné hodnoty'!G29)","v":1},{"$f":"'SJP Pomocné hodnoty'!R29","v":1.1000000000000001},{"$f":"IF($D$24=\"A1\",'SJP Pomocné hodnoty'!S29,IF($D$24=\"A2\",'SJP Pomocné hodnoty'!T29,0))","v":0},0,0,0]
[null,"Další opatření mající prokazatelně vliv na snížení spotřeby primární energie z neobnovitlrených zdrojů",null,null,null,"MWh/rok",{"$f":"'SJP Pomocné hodnoty'!F30","v":36100},{"$f":"IF($E$41>300,'SJP Pomocné hodnoty'!G34,IF($E$41>100,'SJP Pomocné hodnoty'!G33,IF($E$41>30,'SJP Pomocné hodnoty'!G32,IF($E$41>10,'SJP Pomocné hodnoty'!G31,'SJP Pomocné hodnoty'!G30))))","v":1.1000000000000001},{"$f":"'SJP Pomocné hodnoty'!R30","v":1.1000000000000001},{"$f":"IF($D$24=\"A1\",'SJP Pomocné hodnoty'!S30,IF($D$24=\"A2\",'SJP Pomocné hodnoty'!T30,0))","v":0},0,0,0]
[]
[null,"Počet nově instalovaných dobíjecích stanic pro vozidla na elektropohon",null,null,null,"ks",{"$f":"'SJP Pomocné hodnoty'!F80","v":45000},{"$f":"'SJP Pomocné hodnoty'!G80","v":1},{"$f":"'SJP Pomocné hodnoty'!R80","v":1.1000000000000001},{"$f":"IF($D$24=\"A1\",'SJP Pomocné hodnoty'!S80,IF($D$24=\"A2\",'SJP Pomocné hodnoty'!T80,0))","v":0},0,{"$f":"E43*K43","v":0},0]
[null,"Počet realizovaných opatření k ochraně synantropních druhů ",null,null,null,"ks",{"$f":"'SJP Pomocné hodnoty'!F81","v":3000},{"$f":"'SJP Pomocné hodnoty'!G81","v":1},{"$f":"'SJP Pomocné hodnoty'!R81","v":1.1000000000000001},{"$f":"IF($D$24=\"A1\",'SJP Pomocné hodnoty'!S81,IF($D$24=\"A2\",'SJP Pomocné hodnoty'!T81,0))","v":0},0,{"$f":"E44*K44","v":0},0]
[]
[null,"Navýšení podpory při využití EPC/PD&B",null,false]
[null,null,null,false]
[]
[null,"Celková dotace za opatření 1.1.1",null,null,{"$f":"IF(A26<>TRUE,0,IF($C$9<>\"ANO\",SUM(L28:L44),SUM(L28:L44)*(1+$C$10)))","v":0}]
[false,"1.1.3 Zlepšení kvality vnitřního prostředí veřejných budov"]
[null,null,null,null,"hodnota","jednotka","jednotkový náklad bez DPH","k1","k2","k3","jednotková dotace za opatření bez DPH","celková dotace za opatření bez DPH","Způsobilé přímé realizační výdaje"]
[null,"Plocha výplní otvorů stíněných nově instalovanými vnějšími stínícími prvky orientovanými s odklonem větším než 25°od severu","ruční mechanické ovládání",null,null,"m2",{"$f":"'SJP Pomocné hodnoty'!F97","v":3700},{"$f":"'SJP Pomocné hodnoty'!G97","v":0.6},{"$f":"'SJP Pomocné hodnoty'!R97","v":1.1000000000000001},{"$f":"IF($D$24=\"A1\",'SJP Pomocné hodnoty'!S97,IF($D$24=\"A2\",'SJP Pomocné hodnoty'!T97,0))","v":0},{"$f":"G52*H52*I52*J52","v":0},{"$f":"E52*K52","v":0},{"$f":"E52*G52*H52*I52","v":0}]
[null,null,"ruční elektronické ovládání",null,null,"m2",{"$f":"'SJP Pomocné hodnoty'!F98","v":3700},{"$f":"'SJP Pomocné hodnoty'!G98","v":0.9},{"$f":"'SJP Pomocné hodnoty'!R98","v":1.1000000000000001},{"$f":"IF($D$24=\"A1\",'SJP Pomocné hodnoty'!S98,IF($D$24=\"A2\",'SJP Pomocné hodnoty'!T98,0))","v":0},{"$f":"G53*H53*I53*J53","v":0},0,0]
[null,null,"automat. ovlád. na základě meteostanice s rozdělením orientace vůči svět. stranám",null,null,"m2",{"$f":"'SJP Pomocné hodnoty'!F99","v":3700},{"$f":"'SJP Pomocné hodnoty'!G99","v":1},{"$f":"'SJP Pomocné hodnoty'!R99","v":1.1000000000000001},{"$f":"IF($D$24=\"A1\",'SJP Pomocné hodnoty'!S99,IF($D$24=\"A2\",'SJP Pomocné hodnoty'!T99,0))","v":0},0,0,0]
[null,"Podlahová plocha místností v nichž je modernizováno osvětlení na LED (výměna zdroje či svítidla / renovace svítidel a rozvodů / dynamické a biodynamické ovládání)","Chodby, komunikace, sklady a prostory s nižší int. osvětlení než 200 lux/m2","výměna zdrojů a svítidel za nová s LED technologií",null,"m2",{"$f":"'SJP Pomocné hodnoty'!F100","v":2000},{"$f":"'SJP Pomocné hodnoty'!G100","v":0.2},{"$f":"'SJP Pomocné hodnoty'!R100","v":1.1000000000000001},{"$f":"IF($D$24=\"A1\",'SJP Pomocné hodnoty'!S100,IF($D$24=\"A2\",'SJP Pomocné hodnoty'!T100,0))","v":0},0,0,0]
[null,null,null,"obnova sys. osvětlení za LED technol. včetně real. nových rozvodů a svítidel",null,"m2",{"$f":"'SJP Pomocné hodnoty'!F101","v":2000},{"$f":"'SJP Pomocné hodnoty'!G101","v":0.4},{"$f":"'SJP Pomocné hodnoty'!R101","v":1.1000000000000001},{"$f":"IF($D$24=\"A1\",'SJP Pomocné hodnoty'!S101,IF($D$24=\"A2\",'SJP Pomocné hodnoty'!T101,0))","v":0},0,0,0]
[null,null,null,"realizace dynamického či biodynamického osvětlení",null,"m2",{"$f":"'SJP Pomocné hodnoty'!F102","v":2000},{"$f":"'SJP Pomocné hodnoty'!G102","v":0.6},{"$f":"'SJP Pomocné hodnoty'!R102","v":1.1000000000000001},{"$f":"IF($D$24=\"A1\",'SJP Pomocné hodnoty'!S102,IF($D$24=\"A2\",'SJP Pomocné hodnoty'!T102,0))","v":0},0,0,0]
[null,null,"Ostatní prostory (s intenzitou osvětlení vyšší než 200 lux/m2)","výměna zdrojů a svítidel za nová s LED technologií",null,"m2",{"$f":"'SJP Pomocné hodnoty'!F103","v":2000},{"$f":"'SJP Pomocné hodnoty'!G103","v":0.3},{"$f":"'SJP Pomocné hodnoty'!R103","v":1.1000000000000001},{"$f":"IF($D$24=\"A1\",'SJP Pomocné hodnoty'!S103,IF($D$24=\"A2\",'SJP Pomocné hodnoty'!T103,0))","v":0},0,0,0]
[null,null,null,"obnova sys. osvětlení za LED technol. včetně real. nových rozvodů a svítidel",null,"m2",{"$f":"'SJP Pomocné hodnoty'!F104","v":2000},{"$f":"'SJP Pomocné hodnoty'!G104","v":0.7},{"$f":"'SJP Pomocné hodnoty'!R104","v":1.1000000000000001},{"$f":"IF($D$24=\"A1\",'SJP Pomocné hodnoty'!S104,IF($D$24=\"A2\",'SJP Pomocné hodnoty'!T104,0))","v":0},0,0,0]
[null,null,null,"realizace dynamického či biodynamického osvětlení",null,"m2",{"$f":"'SJP Pomocné hodnoty'!F105","v":2000},{"$f":"'SJP Pomocné hodnoty'!G105","v":1},{"$f":"'SJP Pomocné hodnoty'!R105","v":1.1000000000000001},{"$f":"IF($D$24=\"A1\",'SJP Pomocné hodnoty'!S105,IF($D$24=\"A2\",'SJP Pomocné hodnoty'!T105,0))","v":0},0,0,0]
[null,"Podlahová plocha místností v nichž je řešena prostorová akustika (např. přednáškové sály, učebny, apod.)",null,null,null,"m2",{"$f":"'SJP Pomocné hodnoty'!F106","v":1000},{"$f":"'SJP Pomocné hodnoty'!G106","v":1},{"$f":"'SJP Pomocné hodnoty'!R106","v":1.1000000000000001},{"$f":"IF($D$24=\"A1\",'SJP Pomocné hodnoty'!S106,IF($D$24=\"A2\",'SJP Pomocné hodnoty'!T106,0))","v":0},0,0,0]
[]
[]
[null,"Celková dotace za opatření 1.1.3",null,null,{"$f":"IF(A26<>TRUE,0,IF($C$9<>\"ANO\",SUM(L52:L61),SUM(L52:L61)*(1+$C$10)))","v":0}]
[false,"1.1.4 Zvýšení adaptability veřejných budov na změnu klimatu"]
[null,null,null,null,"hodnota","jednotka","jednotkový náklad bez DPH","k1","k2","k3","jednotková dotace za opatření bez DPH","celková dotace za opatření bez DPH","Způsobilé přímé realizační výdaje"]
[null,"Kapacita akum. nádrže instalovaného syst.  využití dešťové vody k závlaze - systém bez technolog. úpravy vody",null,null,null,"m3",{"$f":"'SJP Pomocné hodnoty'!F87","v":8000},{"$f":"'SJP Pomocné hodnoty'!G87","v":1},{"$f":"'SJP Pomocné hodnoty'!R87","v":1.1000000000000001},{"$f":"IF($D$24=\"A1\",'SJP Pomocné hodnoty'!S87,IF($D$24=\"A2\",'SJP Pomocné hodnoty'!T87,0))","v":0},{"$f":"G67*H67*I67*J67","v":0},{"$f":"E67*K67","v":0},{"$f":"E67*G67*H67*I67","v":0}]
[null,"Kapacita akum. nádrže instalovaného syst.využití dešťové vody k závlaze  - technologie na odbourávání organických nečistot (biolog. filtrace) a hygienické zabezpečení na výstupu, určeno pro závlahu rozstřikem",null,null,null,"m3",{"$f":"'SJP Pomocné hodnoty'!F88","v":25000},{"$f":"'SJP Pomocné hodnoty'!G88","v":1},{"$f":"'SJP Pomocné hodnoty'!R88","v":1.1000000000000001},{"$f":"IF($D$24=\"A1\",'SJP Pomocné hodnoty'!S88,IF($D$24=\"A2\",'SJP Pomocné hodnoty'!T88,0))","v":0},{"$f":"G68*H68*I68*J68","v":0},0,0]
[null,"Kapacita akumulační nádrže instalovaného systému využití dešťové vody ke splachování toalet",null,null,null,"m3",{"$f":"'SJP Pomocné hodnoty'!F89","v":40000},{"$f":"'SJP Pomocné hodnoty'!G89","v":1},{"$f":"'SJP Pomocné hodnoty'!R89","v":1.1000000000000001},{"$f":"IF($D$24=\"A1\",'SJP Pomocné hodnoty'!S89,IF($D$24=\"A2\",'SJP Pomocné hodnoty'!T89,0))","v":0},0,0,0]
[null,"Kapacita retenčího zařízení instalovaného systému vsakování a výparu dešťové vody ze zpevněných ploch budovy",null,null,null,"m3",{"$f":"'SJP Pomocné hodnoty'!F90","v":5000},{"$f":"'SJP Pomocné hodnoty'!G90","v":1},{"$f":"'SJP Pomocné hodnoty'!R90","v":1.1000000000000001},{"$f":"IF($D$24=\"A1\",'SJP Pomocné hodnoty'!S90,IF($D$24=\"A2\",'SJP Pomocné hodnoty'!T90,0))","v":0},0,0,0]
[null,"Přečištění a využití lehké šedé vody z budovy (mimo ČOV)","nebo","kapacita zařízení pro úpravu vody",null,"m3 šedé vody/den",{"$f":"'SJP Pomocné hodnoty'!F91","v":150000},{"$f":"'SJP Pomocné hodnoty'!G91","v":1},{"$f":"'SJP Pomocné hodnoty'!R91","v":1.1000000000000001},{"$f":"IF($D$24=\"A1\",'SJP Pomocné hodnoty'!S91,IF($D$24=\"A2\",'SJP Pomocné hodnoty'!T91,0))","v":0},0,0,0]
[null,null,null,"úspora pitné vody",null,"m3/rok",{"$f":"'SJP Pomocné hodnoty'!F92","v":2000},{"$f":"'SJP Pomocné hodnoty'!G92","v":1},{"$f":"'SJP Pomocné hodnoty'!R92","v":1.1000000000000001},{"$f":"IF($D$24=\"A1\",'SJP Pomocné hodnoty'!S92,IF($D$24=\"A2\",'SJP Pomocné hodnoty'!T92,0))","v":0},0,0,0]
[null,"Vegetační střechy ",null,null,null,"m2"]
[]
[]
[null,"Celková dotace za opatření 1.1.4",null,null,{"$f":"IF(A26<>TRUE,0,IF($C$9<>\"ANO\",SUM(L67:L72),SUM(L67:L72)*(1+$C$10)))","v":0}]
[false,"1.2.1 Výstavba a rekonstrukce obnovitelných zdrojů energie pro veřejné budovy"]
[null,null,null,null,"hodnota","jednotka","jednotkový náklad bez DPH","k1","k2","k3","jednotková dotace za opatření bez DPH","celková dotace za opatření bez DPH","Způsobilé přímé realizační výdaje"]
[null,"Celkový výkon nově instalovaných tepelných čerpadel vzduch-voda",null,null,null,"kW",{"$f":"'SJP Pomocné hodnoty'!F45","v":34600},{"$f":"IF($E$79>250,'SJP Pomocné hodnoty'!G45,IF($E$79>100,'SJP Pomocné hodnoty'!G44,IF($E$79>50,'SJP Pomocné hodnoty'!G43,'SJP Pomocné hodnoty'!G42)))","v":1.2},{"$f":"'SJP Pomocné hodnoty'!R45","v":1.1000000000000001},{"$f":"IF($D$24=\"A1\",'SJP Pomocné hodnoty'!S42,IF($D$24=\"A2\",'SJP Pomocné hodnoty'!T42,0))","v":0},{"$f":"G79*H79*I79*J79","v":0},{"$f":"E79*K79","v":0},{"$f":"E79*G79*H79*I79","v":0}]
[null,"Celkový výkon nově instalovaných tepelných čerpadel země-voda a voda/voda",null,null,null,"kW",{"$f":"'SJP Pomocné hodnoty'!F46","v":52900},{"$f":"IF($E$80>250,'SJP Pomocné hodnoty'!G49,IF($E$80>100,'SJP Pomocné hodnoty'!G48,IF($E$80>50,'SJP Pomocné hodnoty'!G47,'SJP Pomocné hodnoty'!G46)))","v":1.2},{"$f":"'SJP Pomocné hodnoty'!R46","v":1.1000000000000001},{"$f":"IF($D$24=\"A1\",'SJP Pomocné hodnoty'!S46,IF($D$24=\"A2\",'SJP Pomocné hodnoty'!T46,0))","v":0},{"$f":"G80*H80*I80*J80","v":0},0,0]
[null,"Celkový výkon nově instalovaných plynových tepelných čerpadel",null,null,null,"kW",{"$f":"'SJP Pomocné hodnoty'!F50","v":28500},{"$f":"IF($E$81>250,'SJP Pomocné hodnoty'!G53,IF($E$81>100,'SJP Pomocné hodnoty'!G52,IF($E$81>50,'SJP Pomocné hodnoty'!G51,'SJP Pomocné hodnoty'!G50)))","v":1.2},{"$f":"'SJP Pomocné hodnoty'!R50","v":1.1000000000000001},{"$f":"IF($D$24=\"A1\",'SJP Pomocné hodnoty'!S50,IF($D$24=\"A2\",'SJP Pomocné hodnoty'!T50,0))","v":0},0,0,0]
[null,"Celkový výkon nově instalovaných zdrojů na biomasu",null,null,null,"kW",{"$f":"'SJP Pomocné hodnoty'!F54","v":10800},{"$f":"IF($E$82>500,'SJP Pomocné hodnoty'!G59,IF($E$82>250,'SJP Pomocné hodnoty'!G58,IF($E$82>100,'SJP Pomocné hodnoty'!G57,IF($E$82>50,'SJP Pomocné hodnoty'!G56,IF($E$82>25,'SJP Pomocné hodnoty'!G55,'SJP Pomocné hodnoty'!G54)))))","v":1.4},{"$f":"'SJP Pomocné hodnoty'!R54","v":1.1000000000000001},{"$f":"IF($D$24=\"A1\",'SJP Pomocné hodnoty'!S54,IF($D$24=\"A2\",'SJP Pomocné hodnoty'!T54,0))","v":0},0,0,0]
[null,"Celkový výkon nově instalovaných systémů využití odpadního tepla",null,null,null,"kW",{"$f":"'SJP Pomocné hodnoty'!F60","v":31600},{"$f":"IF($E$83>500,'SJP Pomocné hodnoty'!G65,IF($E$83>250,'SJP Pomocné hodnoty'!G64,IF($E$83>100,'SJP Pomocné hodnoty'!G63,IF($E$83>50,'SJP Pomocné hodnoty'!G62,IF($E$83>25,'SJP Pomocné hodnoty'!G61,'SJP Pomocné hodnoty'!G60)))))","v":1.4},{"$f":"'SJP Pomocné hodnoty'!R60","v":1.1000000000000001},{"$f":"IF($D$24=\"A1\",'SJP Pomocné hodnoty'!S60,IF($D$24=\"A2\",'SJP Pomocné hodnoty'!T60,0))","v":0},0,0,0]
[null,"Realizace nové otopné teplovodní soustavy",null,null,null,"kW (tep. ztráta)",{"$f":"'SJP Pomocné hodnoty'!F66","v":11500},{"$f":"'SJP Pomocné hodnoty'!G66","v":1},{"$f":"'SJP Pomocné hodnoty'!R66","v":1.1000000000000001},{"$f":"IF($D$24=\"A1\",'SJP Pomocné hodnoty'!S66,IF($D$24=\"A2\",'SJP Pomocné hodnoty'!T66,0))","v":0},0,{"$f":"E84*K84","v":0},0]
[null,"Celkový výkon nově instalovaných solárně-termických kolektorů","systém s plochými kolektory",null,null,"kW",{"$f":"'SJP Pomocné hodnoty'!F67","v":36600},{"$f":"'SJP Pomocné hodnoty'!G67","v":1},{"$f":"'SJP Pomocné hodnoty'!R67","v":1.1000000000000001},{"$f":"IF($D$24=\"A1\",'SJP Pomocné hodnoty'!S67,IF($D$24=\"A2\",'SJP Pomocné hodnoty'!T67,0))","v":0},0,0,0]
[null,null,"systém s vakuovými kolektory",null,null,"kW",{"$f":"'SJP Pomocné hodnoty'!F68","v":36600},{"$f":"'SJP Pomocné hodnoty'!G68","v":1.7},{"$f":"'SJP Pomocné hodnoty'!R68","v":1.1000000000000001},{"$f":"IF($D$24=\"A1\",'SJP Pomocné hodnoty'!S68,IF($D$24=\"A2\",'SJP Pomocné hodnoty'!T68,0))","v":0},0,0,0]
[null,"Celkový výkon nově instalovaných jednotek pro kombinovanou výrobu elektřiny a tepla nebo chladu",null,null,null,"kWe",{"$f":"'SJP Pomocné hodnoty'!F70","v":68100},{"$f":"IF($E$87>100,'SJP Pomocné hodnoty'!G71,IF($E$87>30,'SJP Pomocné hodnoty'!G70,'SJP Pomocné hodnoty'!G69))","v":1.2},{"$f":"'SJP Pomocné hodnoty'!R70","v":1.1000000000000001},{"$f":"IF($D$24=\"A1\",'SJP Pomocné hodnoty'!S69,IF($D$24=\"A2\",'SJP Pomocné hodnoty'!T69,0))","v":0},0,0,0]
[null,"Celkový špičkový výkon nově instalovaných fotovoltaických systémů",null,null,null,"KWp",{"$f":"'SJP Pomocné hodnoty'!F72","v":35000},{"$f":"IF($E$88>250,'SJP Pomocné hodnoty'!G75,IF($E$88>100,'SJP Pomocné hodnoty'!G74,IF($E$88>30,'SJP Pomocné hodnoty'!G73,'SJP Pomocné hodnoty'!G72)))","v":1},{"$f":"'SJP Pomocné hodnoty'!R75","v":1.1000000000000001},{"$f":"IF($D$24=\"A1\",'SJP Pomocné hodnoty'!S72,IF($D$24=\"A2\",'SJP Pomocné hodnoty'!T72,0))","v":0},0,0,0]
[null,"Celková kapacita nově instalovaných bateriových systémů pro akumulaci energie z FVE systému",null,null,null,"kWh",{"$f":"'SJP Pomocné hodnoty'!F76","v":26000},{"$f":"IF($E$88>100,'SJP Pomocné hodnoty'!G78,IF($E$88>30,'SJP Pomocné hodnoty'!G77,'SJP Pomocné hodnoty'!G76))","v":1},{"$f":"'SJP Pomocné hodnoty'!R76","v":1.1000000000000001},{"$f":"IF($D$24=\"A1\",'SJP Pomocné hodnoty'!S76,IF($D$24=\"A2\",'SJP Pomocné hodnoty'!T76,0))","v":0},0,{"$f":"E89*K89","v":0},0]
[null,"Technické propojení FVE s tepelným čerpadlem pro TV",null,false,null,"ks",{"$f":"'SJP Pomocné hodnoty'!F79","v":60000},{"$f":"'SJP Pomocné hodnoty'!G79","v":1},{"$f":"'SJP Pomocné hodnoty'!R79","v":1.1000000000000001},{"$f":"IF($D$24=\"A1\",'SJP Pomocné hodnoty'!S79,IF($D$24=\"A2\",'SJP Pomocné hodnoty'!T79,0))","v":0},{"$f":"IF(D90<>TRUE,0,G90*H90*I90*J90)","v":0},{"$f":"E90*K90","v":0},0]
[]
[null,"Navýšení podpory při využití EPC/PD&B",null,false]
[null,null,null,false]
[]
[null,{"$f":"\"Celková dotace za opatření 1.2.1\"","v":"Celková dotace za opatření 1.2.1"},null," ",{"$f":"IF(A77<>TRUE,0,IF($C$9<>\"ANO\",SUM(L79:L90),SUM(L79:L90)*(1+$C$10)))","v":0}]
[false,"1.2.2 Výstavba a rekonstrukce obnovitelných zdrojů energie pro zajištění dodávek systémové energie ve veřejném sektoru"]
[null,null,null,null,"hodnota","jednotka","jednotkový náklad bez DPH","k1","k2","k3","jednotková dotace za opatření bez DPH","celková dotace za opatření bez DPH","Způsobilé přímé realizační výdaje"]
[null,"Celkový výkon nově instalovaných tepelných čerpadel vzduch-voda",null,null,null,"kW",{"$f":"'SJP Pomocné hodnoty'!F45","v":34600},{"$f":"IF($E$79>250,'SJP Pomocné hodnoty'!G45,IF($E$79>100,'SJP Pomocné hodnoty'!G44,IF($E$79>50,'SJP Pomocné hodnoty'!G43,'SJP Pomocné hodnoty'!G42)))","v":1.2},{"$f":"'SJP Pomocné hodnoty'!R45","v":1.1000000000000001},0.5,{"$f":"G98*H98*I98*J98","v":22836.000000000004},{"$f":"E98*K98","v":0},{"$f":"E98*G98*H98*I98","v":0}]
[null,"Celkový výkon nově instalovaných tepelných čerpadel země-voda a voda/voda",null,null,null,"kW",{"$f":"'SJP Pomocné hodnoty'!F46","v":52900},{"$f":"IF($E$80>250,'SJP Pomocné hodnoty'!G49,IF($E$80>100,'SJP Pomocné hodnoty'!G48,IF($E$80>50,'SJP Pomocné hodnoty'!G47,'SJP Pomocné hodnoty'!G46)))","v":1.2},{"$f":"'SJP Pomocné hodnoty'!R46","v":1.1000000000000001},0.5,{"$f":"G99*H99*I99*J99","v":34914},0,0]
[null,"Celkový výkon nově instalovaných plynových tepelných čerpadel",null,null,null,"kW",{"$f":"'SJP Pomocné hodnoty'!F50","v":28500},{"$f":"IF($E$81>250,'SJP Pomocné hodnoty'!G53,IF($E$81>100,'SJP Pomocné hodnoty'!G52,IF($E$81>50,'SJP Pomocné hodnoty'!G51,'SJP Pomocné hodnoty'!G50)))","v":1.2},{"$f":"'SJP Pomocné hodnoty'!R50","v":1.1000000000000001},0.5,18810,0,0]
[null,"Celkový výkon nově instalovaných zdrojů na biomasu",null,null,null,"kW",{"$f":"'SJP Pomocné hodnoty'!F54","v":10800},{"$f":"IF($E$82>500,'SJP Pomocné hodnoty'!G59,IF($E$82>250,'SJP Pomocné hodnoty'!G58,IF($E$82>100,'SJP Pomocné hodnoty'!G57,IF($E$82>50,'SJP Pomocné hodnoty'!G56,IF($E$82>25,'SJP Pomocné hodnoty'!G55,'SJP Pomocné hodnoty'!G54)))))","v":1.4},{"$f":"'SJP Pomocné hodnoty'!R54","v":1.1000000000000001},0.5,8316,0,0]
[null,"Celkový výkon nově instalovaných systémů využití odpadního tepla",null,null,null,"kW",{"$f":"'SJP Pomocné hodnoty'!F60","v":31600},{"$f":"IF($E$83>500,'SJP Pomocné hodnoty'!G65,IF($E$83>250,'SJP Pomocné hodnoty'!G64,IF($E$83>100,'SJP Pomocné hodnoty'!G63,IF($E$83>50,'SJP Pomocné hodnoty'!G62,IF($E$83>25,'SJP Pomocné hodnoty'!G61,'SJP Pomocné hodnoty'!G60)))))","v":1.4},{"$f":"'SJP Pomocné hodnoty'!R60","v":1.1000000000000001},0.5,24332.000000000004,0,0]
[null,"Realizace nové otopné teplovodní soustavy",null,null,null,"kW (tep. ztráta)",{"$f":"'SJP Pomocné hodnoty'!F66","v":11500},{"$f":"'SJP Pomocné hodnoty'!G66","v":1},{"$f":"'SJP Pomocné hodnoty'!R66","v":1.1000000000000001},0.5,6325.0000000000009,{"$f":"E103*K103","v":0},0]
[null,"Celkový výkon nově instalovaných solárně-termických kolektorů","systém s plochými kolektory",null,null,"kW",{"$f":"'SJP Pomocné hodnoty'!F67","v":36600},{"$f":"'SJP Pomocné hodnoty'!G67","v":1},{"$f":"'SJP Pomocné hodnoty'!R67","v":1.1000000000000001},0.5,20130,{"$f":"E104*K104","v":0},0]
[null,null,"systém s vakuovými kolektory",null,null,"kW",{"$f":"'SJP Pomocné hodnoty'!F68","v":36600},{"$f":"'SJP Pomocné hodnoty'!G68","v":1.7},{"$f":"'SJP Pomocné hodnoty'!R68","v":1.1000000000000001},0.5,34221,0,0]
[null,"Celkový výkon nově instalovaných jednotek pro kombinovanou výrobu elektřiny a tepla nebo chladu",null,null,null,"kWe",{"$f":"'SJP Pomocné hodnoty'!F70","v":68100},{"$f":"IF($E$87>100,'SJP Pomocné hodnoty'!G71,IF($E$87>30,'SJP Pomocné hodnoty'!G70,'SJP Pomocné hodnoty'!G69))","v":1.2},{"$f":"'SJP Pomocné hodnoty'!R70","v":1.1000000000000001},0.5,44946,0,0]
[null,"Celkový špičkový výkon nově instalovaných fotovoltaických systémů",null,null,null,"KWp",{"$f":"'SJP Pomocné hodnoty'!F72","v":35000},{"$f":"IF($E$107>250,'SJP Pomocné hodnoty'!G75,IF($E$107>100,'SJP Pomocné hodnoty'!G74,IF($E$107>30,'SJP Pomocné hodnoty'!G73,'SJP Pomocné hodnoty'!G72)))","v":1},{"$f":"'SJP Pomocné hodnoty'!R75","v":1.1000000000000001},0.5,19250,0,0]
[null,"Celková kapacita nově instalovaných bateriových systémů pro akumulaci energie z FVE systému",null,null,null,"kWh",{"$f":"'SJP Pomocné hodnoty'!F76","v":26000},{"$f":"IF($E$88>100,'SJP Pomocné hodnoty'!G78,IF($E$88>30,'SJP Pomocné hodnoty'!G77,'SJP Pomocné hodnoty'!G76))","v":1},{"$f":"'SJP Pomocné hodnoty'!R76","v":1.1000000000000001},0.5,14300.000000000002,{"$f":"E108*K108","v":0},0]
[null,"Technické propojení FVE s tepelným čerpadlem pro TV",null,false,null,"ks",{"$f":"'SJP Pomocné hodnoty'!F79","v":60000},{"$f":"'SJP Pomocné hodnoty'!G79","v":1},{"$f":"'SJP Pomocné hodnoty'!R79","v":1.1000000000000001},0.5,{"$f":"IF(D109<>TRUE,0,G109*H109*I109*J109)","v":0},{"$f":"E109*K109","v":0},0]
[]
[null,"Navýšení podpory při využití EPC/PD&B",null,false]
[null,null,null,false]
[]
[null,{"$f":"\"Celková dotace za opatření 1.2.2\"","v":"Celková dotace za opatření 1.2.2"},null," ",{"$f":"IF(A96<>TRUE,0,IF($C$9<>\"ANO\",SUM(L98:L109),SUM(L98:L109)*(1+$C$10)))","v":0}]
[]
[]
["Celkové způsobilé přímé realizační výdaje („CZPRV“)",null,null,{"$f":"IF($C$9<>\"ANO\",IF(A26<>TRUE,0,SUM(M28:M44))+IF(A50<>TRUE,0,SUM(M52:M61))+IF(A65<>TRUE,0,SUM(M67:M72))+IF(A77<>TRUE,0,SUM(M79:M90))+IF(A96<>TRUE,0,SUM(M98:M109)),(IF(A26<>TRUE,0,SUM(M28:M44))+IF(A50<>TRUE,0,SUM(M52:M61))+IF(A65<>TRUE,0,SUM(M67:M72))+IF(A77<>TRUE,0,SUM(M79:M90))+IF(A96<>TRUE,0,SUM(M98:M109)))*(1+$C$10))","v":0}]
[]
["Celková výše podpory na realizaci",null,null,{"$f":"IF(OR(D46=TRUE,D47=TRUE,),E49*'SJP Pomocné hodnoty'!U17,E49)+IF(OR(D92=TRUE,D93=TRUE),E95*'SJP Pomocné hodnoty'!U17,E95)+IF(OR(D111=TRUE,D112=TRUE),E114*'SJP Pomocné hodnoty'!U17,E114)+E76+E64","v":0}]
[]
[]
[]
[]
[]
[]
[]
[]
[null,null,null,null,null,"Invented by: Polak & Vrbický"]
[null,null,null,null,null,"Created by: Urban"]

{"sheet":"SJP Pomocné hodnoty","index":4,"n_rows":117,"n_cols":21,"rows_kept":117,"cut":false,"hidden":true,"merged":[[99,1,101,1],[102,1,104,1],[96,0,98,0],[86,0,87,0],[17,0,18,0],[19,0,20,0],[23,0,24,0],[25,0,28,0],[90,0,91,0],[99,0,104,0]]}
["A",null,null,null,null,null,"Číselník pro obecné parametry"]
["Úspora primární energie z neobnovitelných zdrojů",null,0.3,0.4,null,null,1,"Nepam",null,{"$f":"IF('2) Stanovení jednotkové podpory'!$C$7=\"NE\",IF('2) Stanovení jednotkové podpory'!$C$8=\"NE\",IF(AND('2) Stanovení jednotkové podpory'!D46=FALSE,'2) Stanovení jednotkové podpory'!D92=FALSE,'2) Stanovení jednotkové podpory'!D112=FALSE),1,3),IF(AND('2) Stanovení jednotkové podpory'!D46=FALSE,'2) Stanovení jednotkové podpory'!D92=FALSE,'2) Stanovení jednotkové podpory'!D112=FALSE),2,4)),IF('2) Stanovení jednotkové podpory'!$C$8=\"NE\",IF(AND('2) Stanovení jednotkové podpory'!D46=FALSE,VD92=FALSE,'2) Stanovení jednotkové podpory'!D112=FALSE),5,7),IF(AND('2) Stanovení jednotkové podpory'!D46=FALSE,'2) Stanovení jednotkové podpory'!D92=FALSE,'2) Stanovení jednotkové podpory'!D112=FALSE),6,8)))","v":1}]
["Dosažená hodnota primární energie z neobnovitelných zdrojů dle PENB pro stav po realizaci navržených opatření",null,0.85,0.7,null,null,2,"Nepam škola"]
["Průměrný součinitel prostupu tepla obálky budovy",null,0.95,0.8,null,null,3,"Nepam EPC"]
["Součinitel prostupu tepla pro měněné stavební prvky vyjma oken, na něž se vztahuje podpora",null,null,null,null,null,4,"Nepam škola EPC"]
["Součinitel prostupu tepla oken, na něž se vztahuje podpora",null,0.15,null,null,null,5,"Pam"]
["Nejvyšší denní teplota vzduchu v místnosti v letním období ",null,0.21,null,null,null,6,"Pam škola "]
["Koncept větrání",null,null,null,null,null,7,"Pam EPC"]
[null,null,"ANO",null,null,null,8,"Pam škola EPC"]
[null,null,"NE"]
[{"$f":"IF('2) Stanovení jednotkové podpory'!$A$26=TRUE,1,0)+IF('2) Stanovení jednotkové podpory'!$A$50=TRUE,1,0)+IF('2) Stanovení jednotkové podpory'!$A$65=TRUE,1,0)+IF('2) Stanovení jednotkové podpory'!$A$77=TRUE,1,0)","v":0},"počet specifických cílů dotčených projektem"]
[null,"Specifický cíl 1.2 (po zatržení je nutno vybrat jedno z opatření v rozbalovacím menu u této buňky vpravo)"]
[null,"1.2.1 Výstavba a rekonstrukce obnovitelných zdrojů energie pro veřejné budovy"]
[null,"1.2.2 Výstavba a rekonstrukce obnovitelných zdrojů energie pro zajištění dodávek systémové energie ve veřejném sektoru"]
[]
[null,null,null,null,null,"jednotkové náklady bez DPH","k1",null,"% podpory pro oblast A a C",null,null,40,"% podpory pro oblast B",null,null,60,null,"k2","k3 A1","k3 A2","k4"]
["Plocha zateplovaných obvodových stěn",null,null,null,null,4200,1,0.05,"+0,05 – v případě certifikátu EPD pro tepelný izolant (environmentální prohlášení typu III)",null,null,null,null,null,null,null,null,{"$f":"'2) Stanovení jednotkové podpory'!C6","v":1.1000000000000001},0.5,{"$f":"S17+0.15","v":0.65},1.1000000000000001]
["Plocha měněných otvorových výplní (oken a dveří)","ne LOP",null,null,null,8900,1,0.05,"+0,05 – v případě certifikátu EPD pro tepelný izolant (environmentální prohlášení typu III)",null,null,null,null,null,null,null,null,{"$f":"$R$17","v":1.1000000000000001},0.5,{"$f":"S18+0.15","v":0.65},{"$f":"$U$17","v":1.1000000000000001}]
[null,"LOP",null,null,null,8900,1.3,0.05,"+0,05 – v případě certifikátu EPD pro tepelný izolant (environmentální prohlášení typu III)",null,null,null,null,null,null,null,null,{"$f":"$R$17","v":1.1000000000000001},0.5,0.65,{"$f":"$U$17","v":1.1000000000000001}]
["Plocha zateplovaných plochých či šikmých střech","nová skladba včetně paro a hydro izolace",null,null,null,3200,1,0.05,"+0,05 – v případě certifikátu EPD pro tepelný izolant (environmentální prohlášení typu III)",null,null,null,null,null,null,null,null,1.1000000000000001,0.5,0.65,1.1000000000000001]
[null,"pouze tepelná vrstva bez paro a hydroizolace",null,null,null,3200,0.2,0.05,"+0,05 – v případě certifikátu EPD pro tepelný izolant (environmentální prohlášení typu III)",null,null,null,null,null,null,null,null,1.1000000000000001,0.5,0.65,1.1000000000000001]
["Plocha zateplovaných podlah na zemině",null,null,null,null,4000,1,0.05,"+0,05 – v případě certifikátu EPD pro tepelný izolant (environmentální prohlášení typu III)",null,null,null,null,null,null,null,null,1.1000000000000001,0.5,0.65,1.1000000000000001]
["Plocha zateplovaných konstrukcí k nevytápěným prostorům",null,null,null,null,1200,1,0.05,"+0,05 – v případě certifikátu EPD pro tepelný izolant (environmentální prohlášení typu III)",null,null,null,null,null,null,null,null,1.1000000000000001,0.5,0.65,1.1000000000000001]
["Celkový výkon nově instalovaných systémů nuceného větrání  - výukové prostory vzdělávacích budov","výkon na jednotku do 1500 m3",null,null,null,9800,0.6,null,null,null,null,null,null,null,null,null,null,1.1000000000000001,0.7,{"$f":"S24+0","v":0.7},1.1000000000000001]
[null,"výkon na jednotku nad 1500 m3",null,null,null,9800,1,null,null,null,null,null,null,null,null,null,null,1.1000000000000001,0.7,{"$f":"S25+0","v":0.7},1.1000000000000001]
["Celkový výkon nově instalovaných systémů nuceného větrání s rekuperací - ostatní","výkon na jednotku do 1500 m3",null,null,null,390,0.6,null,null,null,null,null,null,null,null,null,null,1.1000000000000001,0.7,0.7,1.1000000000000001]
[null,"výkon na jednotku nad 1500 m3 - regulace průtoku ON/OFF",null,null,null,390,0.5,null,null,null,null,null,null,null,null,null,null,1.1000000000000001,0.7,0.7,1.1000000000000001]
[null,"výkon na jednotku nad 1500 m3 - regulace průtoku dle času, % výkonu jednotky a ostatní neuvedené",null,null,null,390,0.7,null,null,null,null,null,null,null,null,null,null,1.1000000000000001,0.7,0.7,1.1000000000000001]
[null,"výkon na jednotku nad 1500 m3 - plynulá regulace, např. CO2",null,null,null,390,1,null,null,null,null,null,null,null,null,null,null,1.1000000000000001,0.7,0.7,1.1000000000000001]
["Další opatření mající prokazatelně vliv na snížení spotřeby primární energie z neobnovitlrených zdrojů","do 10 MWh/rok",null,null,null,36100,1.1000000000000001,"– do 10 MWh/rok",null,null,null,null,null,null,null,null,null,1.1000000000000001,0.5,{"$f":"S30+0.15","v":0.65},1.1000000000000001]
[null,"nad 10 MWh/rok do 30 MWh/rok",null,null,null,36100,0.9,"– nad 10 do 30 MWh/rok",null,null,null,null,null,null,null,null,null,1.1000000000000001,0.5,{"$f":"S31+0.15","v":0.65},1.1000000000000001]
[null,"nad 30 MWh/rok do 100 MWh/rok",null,null,null,36100,0.7,"– nad 30 do 100 MWh/rok",null,null,null,null,null,null,null,null,null,1.1000000000000001,0.5,0.65,1.1000000000000001]
[null,"nad 100 MWh/rok do 300 MWh/rok",null,null,null,36100,0.5,"– nad 100 do 300 MWh/rok",null,null,null,null,null,null,null,null,null,1.1000000000000001,0.5,0.65,1.1000000000000001]
[null,"nad 300 MWh/rok",null,null,null,36100,0.2,"– nad 300 MWh/rok",null,null,null,null,null,null,null,null,null,1.1000000000000001,0.5,0.65,1.1000000000000001]
[]
["Celkový výkon nově instalovaných kondenzačních kotlů na zemní plyn",null,null,null,null,8300,1.4,"– do 25 kW",null,null,null,null,null,null,null,null,null,1.1000000000000001,{"$f":"$S$17","v":0.5},0.65,1.1000000000000001]
[null,null,null,null,null,8300,1.2,"– nad 25 kW do 50 kW",null,null,null,null,null,null,null,null,null,1.1000000000000001,0.5,0.65,1.1000000000000001]
[null,null,null,null,null,8300,1.1000000000000001,"– nad 50 kW do 100 kW",null,null,null,null,null,null,null,null,null,1.1000000000000001,0.5,0.65,1.1000000000000001]
[null,null,null,null,null,8300,0.9,"– nad 100 kW do 250 kW",null,null,null,null,null,null,null,null,null,1.1000000000000001,0.5,0.65,1.1000000000000001]
[null,null,null,null,null,8300,0.75," – nad 250 kW do 500 kW",null,null,null,null,null,null,null,null,null,1.1000000000000001,0.5,0.65,1.1000000000000001]
[null,null,null,null,null,8300,0.6,"– nad 500 kW",null,null,null,null,null,null,null,null,null,1.1000000000000001,0.5,0.65,1.1000000000000001]
["Celkový výkon nově instalovaných tepelných čerpadel vzduch-voda",null,null,null,null,34600,1.2,"– do 50 kW",null,null,null,null,null,null,null,null,null,1.1000000000000001,0.6,0.75,1.1000000000000001]
[null,null,null,null,null,34600,1.1000000000000001,"– nad 50 kW do 100 kW",null,null,null,null,null,null,null,null,null,1.1000000000000001,0.6,0.75,1.1000000000000001]
[null,null,null,null,null,34600,0.9,"– nad 100 kW do 250 kW",null,null,null,null,null,null,null,null,null,1.1000000000000001,0.6,0.75,1.1000000000000001]
[null,null,null,null,null,34600,0.8,"– nad 250 kW",null,null,null,null,null,null,null,null,null,1.1000000000000001,0.6,0.75,1.1000000000000001]
["Celkový výkon nově instalovaných tepelných čerpadel země-voda a voda/voda",null,null,null,null,52900,1.2,"– do 50 kW",null,null,null,null,null,null,null,null,null,1.1000000000000001,0.6,0.75,1.1000000000000001]
[null,null,null,null,null,52900,1.1000000000000001,"– nad 50 kW do 100 kW",null,null,null,null,null,null,null,null,null,1.1000000000000001,0.6,0.75,1.1000000000000001]
[null,null,null,null,null,52900,0.9,"– nad 100 kW do 250 kW",null,null,null,null,null,null,null,null,null,1.1000000000000001,0.6,0.75,1.1000000000000001]
[null,null,null,null,null,52900,0.8,"– nad 250 kW",null,null,null,null,null,null,null,null,null,1.1000000000000001,0.6,0.75,1.1000000000000001]
["Celkový výkon nově instalovaných plynových tepelných čerpadel",null,null,null,null,28500,1.2,"– do 50 kW",null,null,null,null,null,null,null,null,null,1.1000000000000001,0.6,0.75,1.1000000000000001]
[null,null,null,null,null,28500,1.1000000000000001,"– nad 50 kW do 100 kW",null,null,null,null,null,null,null,null,null,1.1000000000000001,0.6,0.75,1.1000000000000001]
[null,null,null,null,null,28500,0.9,"– nad 100 kW do 250 kW",null,null,null,null,null,null,null,null,null,1.1000000000000001,0.6,0.75,1.1000000000000001]
[null,null,null,null,null,28500,0.8,"– nad 250 kW",null,null,null,null,null,null,null,null,null,1.1000000000000001,0.6,0.75,1.1000000000000001]
["Celkový výkon nově instalovaných zdrojů na biomasu",null,null,null,null,10800,1.4,"– do 25 kW",null,null,null,null,null,null,null,null,null,1.1000000000000001,0.6,0.75,1.1000000000000001]
[null,null,null,null,null,10800,1.2,"– nad 25 kW do 50 kW",null,null,null,null,null,null,null,null,null,1.1000000000000001,0.6,0.75,1.1000000000000001]
[null,null,null,null,null,10800,1.1000000000000001,"– nad 50 kW do 100 kW",null,null,null,null,null,null,null,null,null,1.1000000000000001,0.6,0.75,1.1000000000000001]
[null,null,null,null,null,10800,0.9,"– nad 100 kW do 250 kW",null,null,null,null,null,null,null,null,null,1.1000000000000001,0.6,0.75,1.1000000000000001]
[null,null,null,null,null,10800,0.75," – nad 250 kW do 500 kW",null,null,null,null,null,null,null,null,null,1.1000000000000001,0.6,0.75,1.1000000000000001]
[null,null,null,null,null,10800,0.6,"– nad 500 kW",null,null,null,null,null,null,null,null,null,1.1000000000000001,0.6,0.75,1.1000000000000001]
["Celkový výkon nově instalovaných systémů využití odpadního tepla",null,null,null,null,31600,1.4,"– do 25 kW",null,null,null,null,null,null,null,null,null,1.1000000000000001,0.6,0.75,1.1000000000000001]
[null,null,null,null,null,31600,1.2,"– nad 25 kW do 50 kW",null,null,null,null,null,null,null,null,null,1.1000000000000001,0.6,0.75,1.1000000000000001]
[null,null,null,null,null,31600,1.1000000000000001,"– nad 50 kW do 100 kW",null,null,null,null,null,null,null,null,null,1.1000000000000001,0.6,0.75,1.1000000000000001]
[null,null,null,null,null,31600,0.9,"– nad 100 kW do 250 kW",null,null,null,null,null,null,null,null,null,1.1000000000000001,0.6,0.75,1.1000000000000001]
[null,null,null,null,null,31600,0.75,"– nad 250 kW do 500 kW",null,null,null,null,null,null,null,null,null,1.1000000000000001,0.6,0.75,1.1000000000000001]
[null,null,null,null,null,31600,0.6,"– nad 500 kW",null,null,null,null,null,null,null,null,null,1.1000000000000001,0.6,0.75,1.1000000000000001]
["Realizace nové otopné teplovodní soustavy",null,null,null,null,11500,1,null,null,null,null,null,null,null,null,null,null,1.1000000000000001,0.5,0.65,1.1000000000000001]
["Celkový výkon nově instalovaných solárně-termických kolektorů",null,null,null,null,36600,1,"– pro systém s plochými kolektory",null,null,null,null,null,null,null,null,null,1.1000000000000001,0.6,0.75,1.1000000000000001]
[null,null,null,null,null,36600,1.7,"– pro systém s vakuovými kolektory",null,null,null,null,null,null,null,null,null,1.1000000000000001,0.6,0.75,1.1000000000000001]
["Celkový výkon nově instalovaných jednotek pro kombinovanou výrobu elektřiny a tepla nebo chladu","s výkonem do 30 kWe",null,null,null,68100,1.2,null,null,null,null,null,null,null,null,null,null,1.1000000000000001,0.5,0.65,1.1000000000000001]
[null,"s výkonem od 30 do 100 kWe",null,null,null,68100,1,null,null,null,null,null,null,null,null,null,null,1.1000000000000001,0.5,0.65,1.1000000000000001]
[null,"s výkonem nad 100 kWe",null,null,null,68100,0.7,null,null,null,null,null,null,null,null,null,null,1.1000000000000001,0.5,0.65,1.1000000000000001]
["Celkový špičkový výkon nově instalovaných fotovoltaických systémů",null,null,null,null,35000,1,"– pro FVE s výkonem do 30 kWp",null,null,null,null,null,null,null,null,null,1.1000000000000001,0.6,0.75,1.1000000000000001]
[null,null,null,null,null,35000,0.85,"– pro FVE s výkonem nad 30 do 100 kWp",null,null,null,null,null,null,null,null,null,1.1000000000000001,0.6,0.75,1.1000000000000001]
[null,null,null,null,null,35000,0.7,"– pro FVE s výkonem nad 100 do 250 kWp",null,null,null,null,null,null,null,null,null,1.1000000000000001,0.6,0.75,1.1000000000000001]
[null,null,null,null,null,35000,0.6," – pro FVE s výkonem nad 250 kWp",null,null,null,null,null,null,null,null,null,1.1000000000000001,0.6,0.75,1.1000000000000001]
["Celková kapacita nově instalovaných bateriových systémů pro akumulaci energie z FVE systému",null,null,null,null,26000,1,"– s kapacitou do 30 kWh",null,null,null,null,null,null,null,null,null,1.1000000000000001,0.6,0.75,1.1000000000000001]
[null,null,null,null,null,null,1,"– s kapacitou nad 30 do 100 kWh",null,null,null,null,null,null,null,null,null,1.1000000000000001,0.6,0.75,1.1000000000000001]
[null,null,null,null,null,null,1,"– s kapacitou nad 100 kWh",null,null,null,null,null,null,null,null,null,1.1000000000000001,0.6,0.75,1.1000000000000001]
["Technické propojení FVE s tepelným čerpadlem pro TV",null,null,null,null,60000,1,null,null,null,null,null,null,null,null,null,null,1.1000000000000001,0.6,0.75,1.1000000000000001]
["Počet nově instalovaných dobíjecích stanic pro vozidla na elektropohon",null,null,null,null,45000,1,null,null,null,null,null,null,null,null,null,null,1.1000000000000001,0.7,{"$f":"S80","v":0.7},1.1000000000000001]
["Počet realizovaných opatření k ochraně synantropních druhů ",null,null,null,null,3000,1,null,null,null,null,null,null,null,null,null,null,1.1000000000000001,0.7,{"$f":"S81","v":0.7},1.1000000000000001]
[]
[]
[]
[]
["B"]
["Kapacita akumulační nádrže instalovaného systému využití dešťové vody k závlaze"," systém bez technologické úpravy vody",null,null,null,8000,1,null,null,null,null,null,null,null,null,null,null,{"$f":"$R$17","v":1.1000000000000001},0.4,{"$f":"S87","v":0.4},1]
[null," technologie na odbourávání na odbourávání organických nečistot (biologická filtrace) a hygienické zabezpečení na výstupu, určeno pro závlahu rozstřikem",null,null,null,25000,1,null,null,null,null,null,null,null,null,null,null,1.1000000000000001,0.65,0.65,1]
["Kapacita akumulační nádrže instalovaného systému využití dešťové vody ke splachování toalet",null,null,null,null,40000,1,null,null,null,null,null,null,null,null,null,null,1.1000000000000001,0.65,0.65,1]
["Kapacita retenčího zařízení instalovaného systému vsakování a výparu dešťové vody ze zpevněných ploch budovy",null,null,null,null,5000,1,null,null,null,null,null,null,null,null,null,null,1.1000000000000001,0.4,0.4,1]
["Přečištění a využití lehké šedé vody z budovy (mimo ČOV)","kapacita zařízení pro úpravu vody",null,null,null,150000,1,null,null,null,null,null,null,null,null,null,null,1.1000000000000001,0.65,0.65,1]
[null,"úspora pitné vody",null,null,null,2000,1,null,null,null,null,null,null,null,null,null,null,1.1000000000000001,0.65,0.65,1]
["Vegetační střechy "]
[]
[]
["C"]
["Plocha výplní otvorů stíněných nově instalovanými vnějšími stínícími prvky orientovanými s odklonem větším než 25°od severu","ruční mechanické ovládání",null,null,null,3700,0.6,"0,6 - ruční mechanické ovládání",null,null,null,null,null,null,null,null,null,1.1000000000000001,0.4,{"$f":"S97","v":0.4},1]
[null,"ruční elektronické ovládání",null,null,null,3700,0.9,"0,9 - ruční elektronické ovládání",null,null,null,null,null,null,null,null,null,1.1000000000000001,0.5,{"$f":"S98","v":0.5},1]
[null,"automatické ovládání na základě meteostanice s rozdělením orientace vůči světovým stranám",null,null,null,3700,1,"1,0 - automatické ovládání na základě meteostanice s rozdělením orientace vůči světovým stranám",null,null,null,null,null,null,null,null,null,1.1000000000000001,0.65,0.65,1]
["Podlahová plocha místností v nichž je modernizováno osvětlení na LED (výměna zdroje či svítidla / renovace svítidel a rozvodů / dynamické a biodynamické ovládání)","Chodby, komunikace, sklady a prostory s nižší intenzitou osvětlení než 200 lux/m2","výměna zdrojů a svítidel za nová s LED technologií",null,null,2000,0.2,"0,2 - výměna zdrojů a svítidel za nová s LED technologií",null,null,null,null,null,null,null,null,null,1.1000000000000001,0.4,0.4,1]
[null,null,"obnova systému osvětlení za LED technologie včetně realizace nových rozvodů a svítidel",null,null,2000,0.4,"0,4 - obnova systému osvětlení za LED technologie včetně realizace nových rozvodů a svítidel",null,null,null,null,null,null,null,null,null,1.1000000000000001,0.5,0.5,1]
[null,null,"realizace dynamického či biodynamického osvětlení",null,null,2000,0.6,"0,6 - realizace dynamického či biodynamického osvětlení",null,null,null,null,null,null,null,null,null,1.1000000000000001,0.65,0.65,1]
[null,"Ostatní prostory (s intenzitou osvětlení vyšší než 200 lux/m2)","výměna zdrojů a svítidel za nová s LED technologií",null,null,2000,0.3,"0,3 - výměna zdrojů a svítidel za nová s LED technologií",null,null,null,null,null,null,null,null,null,1.1000000000000001,0.4,0.4,1]
[null,null,"obnova systému osvětlení za LED technologie včetně realizace nových rozvodů a svítidel",null,null,2000,0.7,"0,7 - obnova systému osvětlení za LED technologie včetně realizace nových rozvodů a svítidel",null,null,null,null,null,null,null,null,null,1.1000000000000001,0.5,0.5,1]
[null,null,"realizace dynamického či biodynamického osvětlení",null,null,2000,1,"1,0 - realizace dynamického či biodynamického osvětlení",null,null,null,null,null,null,null,null,null,1.1000000000000001,0.65,0.65,1]
["Podlahová plocha místností v nichž je řešena prostorová akustika (např. přednáškové sály, učebny, apod.)",null,null,null,null,1000,1,null,null,null,null,null,null,null,null,null,null,1.1000000000000001,0.5,0.5,1]
[]
["ANO"]
["NE"]
[]
[]
["Bonus za kombinaci opatření","´+ 2 % za A+1xB"]
[null,"´+ 4 % za A+2xB"]
[null,"kombinace A+C?"]
[]
[]
["Celková podpora","´=A1 nebo A2 + B + C + bonus"]

{"sheet":"3) Výsledný rozpočet do ISKP21+","index":5,"n_rows":53,"n_cols":13,"rows_kept":53,"cut":false,"hidden":false,"merged":[[19,4,19,5],[21,4,21,5],[18,4,18,5],[23,4,23,5],[18,8,18,9],[19,8,19,9],[21,8,21,9],[23,8,23,9],[18,6,18,7],[19,6,19,7],[21,6,21,7],[23,6,23,7],[23,0,23,3],[34,9,34,10],[35,9,35,10],[36,9,36,10],[28,0,28,2],[28,7,28,8],[25,7,27,11]]}
["Veřejná podpora"]
[]
["Typ veřejné podpory"]
[1]
[]
["Stanovení výše podpory pro veřejnou podporu dle GBER",null,null,null,null,null,null,null,"Stanovení výše podpory pro De minimis"]
[]
["Bonifikace za umístění projektu",null,null,null,null,null,null,null,"Předchozí čerpání de minimis v €"]
[2,null,null,null,null,null,null,null,"Aktuální kurz €",null,null,null,"https://commission.europa.eu/funding-tenders/procedures-guidelines-tenders/information-contractors-and-beneficiaries/exchange-rate-inforeuro_cs"]
[null,null,null,null,null,null,null,null,"Limit pro čerpání v Kč",null,null,{"$f":"IF(A4=2,(200000-L8)*L9,IF(A4=3,(500000-L8)*L9,\"\"))","v":""}]
["Bonifikace za velikost podniku"]
[3]
[]
[null,null,null,null,false]
[]
[]
["Porovnání celkové podpory projektu dle pravidel OPŽP 21+ a pravidel veřejné podpory"]
[]
[null,null,null,null,"Realizace",null,"PP+AD+TDI",null,"Celkem"]
["Dle pravidel výzvy",null,null,null,{"$f":"IF('1) Kumulativní rozpočet'!D16=0,0,MIN('1) Kumulativní rozpočet'!I20,'2) Stanovení jednotkové podpory'!D119))","v":0},null,{"$f":"IF('1) Kumulativní rozpočet'!D16=0,0,MIN(1,('2) Stanovení jednotkové podpory'!D119/MIN('2) Stanovení jednotkové podpory'!D117,'1) Kumulativní rozpočet'!I20)))*MIN((IF(MIN('2) Stanovení jednotkové podpory'!D117,'1) Kumulativní rozpočet'!I20)>10000000,0.035,IF(MIN('2) Stanovení jednotkové podpory'!D117,'1) Kumulativní rozpočet'!I20)>3000000,0.05,0.07))*MIN('2) Stanovení jednotkové podpory'!D117,'1) Kumulativní rozpočet'!I20)),15000000))","v":0},null,{"$f":"SUM(E20:G20)","v":0}]
[]
["Dle pravidel veřejné podpory",null,null,null,{"$f":"IF('1) Kumulativní rozpočet'!D16=0,\"\",IF($A$4=1,\"Irelevantní\",IF(OR($A$4=2,$A$4=3),IF(I20>L10,IF(L10<E20,L10,E20),E20),'2) Stanovení jednotkové podpory'!D117*IF($A$4=5,IF(A9=1,IF(A12=3,'VP pomocné hodnoty'!D25,IF(A12=2,'VP pomocné hodnoty'!D26,'VP pomocné hodnoty'!D27)),IF(A9=2,IF(A12=3,'VP pomocné hodnoty'!E25,IF(A12=2,'VP pomocné hodnoty'!E26,'VP pomocné hodnoty'!E27)),IF(A12=3,'VP pomocné hodnoty'!F25,IF(A12=2,'VP pomocné hodnoty'!F26,'VP pomocné hodnoty'!F27)))),IF($A$4=6,IF(A9=1,IF(A12=3,'VP pomocné hodnoty'!D28,IF(A12=2,'VP pomocné hodnoty'!D29,'VP pomocné hodnoty'!D30)),IF(A9=2,IF(A12=3,'VP pomocné hodnoty'!E28,IF(A12=2,'VP pomocné hodnoty'!E29,'VP pomocné hodnoty'!E30)),IF(A12=3,'VP pomocné hodnoty'!F28,IF(A12=2,'VP pomocné hodnoty'!F29,'VP pomocné hodnoty'!F30)))),IF(A4=7,IF(A9=1,IF(A12=3,'VP pomocné hodnoty'!D31,IF(A12=2,'VP pomocné hodnoty'!D32,'VP pomocné hodnoty'!D33)),IF(A9=2,IF(A12=3,'VP pomocné hodnoty'!E31,IF(A12=2,'VP pomocné hodnoty'!E32,'VP pomocné hodnoty'!E33)),IF(A12=3,'VP pomocné hodnoty'!F31,IF(A12=2,'VP pomocné hodnoty'!F32,'VP pomocné hodnoty'!F33)))),1))))))","v":""},null,{"$f":"IF('1) Kumulativní rozpočet'!D16=0,\"\",IF($A$4=1,\"Irelevantní\",IF(AND(OR($A$4=2,$A$4=3),I20>L10),IF(E20<L10,(L10-E20),0),MIN('2) Stanovení jednotkové podpory'!D117,'1) Kumulativní rozpočet'!I20)*IF(MIN('2) Stanovení jednotkové podpory'!D117,'1) Kumulativní rozpočet'!I20)>10000000,0.035,IF(MIN('2) Stanovení jednotkové podpory'!D117,'1) Kumulativní rozpočet'!I20)>3000000,0.05,0.07))*IF($A$4=5,IF(A9=1,IF(A12=3,'VP pomocné hodnoty'!D25,IF(A12=2,'VP pomocné hodnoty'!D26,'VP pomocné hodnoty'!D27)),IF(A9=2,IF(A12=3,'VP pomocné hodnoty'!E25,IF(A12=2,'VP pomocné hodnoty'!E26,'VP pomocné hodnoty'!E27)),IF(A12=3,'VP pomocné hodnoty'!F25,IF(A12=2,'VP pomocné hodnoty'!F26,'VP pomocné hodnoty'!F27)))),IF($A$4=6,IF(A9=1,IF(A12=3,'VP pomocné hodnoty'!D28,IF(A12=2,'VP pomocné hodnoty'!D29,'VP pomocné hodnoty'!D30)),IF(A9=2,IF(A12=3,'VP pomocné hodnoty'!E28,IF(A12=2,'VP pomocné hodnoty'!E29,'VP pomocné hodnoty'!E30)),IF(A12=3,'VP pomocné hodnoty'!F28,IF(A12=2,'VP pomocné hodnoty'!F29,'VP pomocné hodnoty'!F30)))),IF(A4=7,IF(A9=1,IF(A12=3,'VP pomocné hodnoty'!D31,IF(A12=2,'VP pomocné hodnoty'!D32,'VP pomocné hodnoty'!D33)),IF(A9=2,IF(A12=3,'VP pomocné hodnoty'!E31,IF(A12=2,'VP pomocné hodnoty'!E32,'VP pomocné hodnoty'!E33)),IF(A12=3,'VP pomocné hodnoty'!F31,IF(A12=2,'VP pomocné hodnoty'!F32,'VP pomocné hodnoty'!F33)))),IF(OR($A$4=2,$A$4=3),A29,1)))))))","v":""},null,{"$f":"IF('1) Kumulativní rozpočet'!D16=0,\"\",SUM(E22:G22))","v":""}]
[]
["Výsledná celková podpora za projekt",null,null,null,{"$f":"MIN(E20,E22)","v":0},null,{"$f":"MIN(G20,G22)","v":0},null,{"$f":"SUM(E24:G24)","v":0}]
[]
[null,null,null,null,null,null,null,{"$f":"IF(ROUNDDOWN(A29,4)<A29,\"Aktuální hodnota procenta podpory má více, než 2 desetinná místa. Do ISKP 21+ je možno zadat procento podpory s nejvýše dvěma desetinnými místy. Výsledná výše podpory po zaokrouhlení činí:\",\"\")","v":""}]
["Výsledné procento podpory projektu do ISKP 21+"]
[]
[{"$f":"IF(OR(A4=5,A4=6,A4=7,A4=9,A4=10),$I$24/(MIN('1) Kumulativní rozpočet'!I20,'2) Stanovení jednotkové podpory'!$D$117)*(1+IF(MIN('2) Stanovení jednotkové podpory'!D117,'1) Kumulativní rozpočet'!I20)>10000000,0.035,IF(MIN('2) Stanovení jednotkové podpory'!D117,'1) Kumulativní rozpočet'!I20)>3000000,0.05,0.07)))),IF(OR(A4=2,A4=3),IF(I20>L10,1,IF(E24=0,0,E24/MIN('2) Stanovení jednotkové podpory'!D117,'1) Kumulativní rozpočet'!I20))),IF(E24=0,0,E24/MIN('2) Stanovení jednotkové podpory'!D117,'1) Kumulativní rozpočet'!I20))))","v":0},null,null,null,null,null,null,{"$f":"IF(ROUND($A$29,4)<>$A$29,ROUND($A$29,4)*$I$41,\"\")","v":""}]
[]
["Výsledný rozpočet do ISKP 21+"]
[]
["Stanovení investiční části výdajů"]
[]
["1.1.1.1 Přímé náklady jednotkové - investiční do limitu paušálu a projekty bez motivačního účinku GBER"]
["1.1.3.3 Přímé náklady jednotkové nebo doložené doklady - investiční nad limit paušálu a projekty s motivačním účinkem GBER"]
["1.2.5 Celkové nezpůsobilé výdaje - investiční"]
[]
[]
[null,null,null,null,null,null,null,null,{"$f":"I41+I49","v":{"$error":"#VALUE!"}}]
[null,null,null,null,null,null,null,null,{"$f":"I42+I45+I46","v":0}]
[null,null,null,null,null,null,null,null,{"$f":"IF(OR($A$4=1,$A$4=4,$A$4=8),MIN(MIN('2) Stanovení jednotkové podpory'!D117,'1) Kumulativní rozpočet'!I20),(15000000/0.035)),IF(OR($A$4=2,$A$4=3),IF(I24>=L10,0,(MIN('1) Kumulativní rozpočet'!I20,'2) Stanovení jednotkové podpory'!$D$117)*1)),0))","v":0}]
[null,null,null,null,null,null,null,null,{"$f":"IF(J35=\"\",\"Nestanoveno\",J35)","v":"Nestanoveno"}]
[null,null,null,null,null,null,null,null,{"$f":"I42-I43","v":{"$error":"#VALUE!"}}]
[null,null,null,null,null,null,null,null,{"$f":"IF(OR(A4=5,A4=6,A4=7,A4=9,A4=10),0,IF(OR(A4=2,A4=3),IF(I20<=L10,MIN(15000000,IF(MIN('2) Stanovení jednotkové podpory'!D117,'1) Kumulativní rozpočet'!I20)>10000000,MIN('2) Stanovení jednotkové podpory'!D117,'1) Kumulativní rozpočet'!I20)*0.035,IF(MIN('2) Stanovení jednotkové podpory'!D117,'1) Kumulativní rozpočet'!I20)>3000000,MIN('2) Stanovení jednotkové podpory'!D117,'1) Kumulativní rozpočet'!I20)*0.05,MIN('2) Stanovení jednotkové podpory'!D117,'1) Kumulativní rozpočet'!I20)*0.07))),0),MIN(15000000,IF(MIN('2) Stanovení jednotkové podpory'!D117,'1) Kumulativní rozpočet'!I20)>10000000,MIN('2) Stanovení jednotkové podpory'!D117,'1) Kumulativní rozpočet'!I20)*0.035,IF(MIN('2) Stanovení jednotkové podpory'!D117,'1) Kumulativní rozpočet'!I20)>3000000,MIN('2) Stanovení jednotkové podpory'!D117,'1) Kumulativní rozpočet'!I20)*0.05,MIN('2) Stanovení jednotkové podpory'!D117,'1) Kumulativní rozpočet'!I20)*0.07)))))","v":0}]
[null,null,null,null,null,null,null,null,{"$f":"IF(OR(A4=5,A4=6,A4=7,A4=9,A4=10),MIN('1) Kumulativní rozpočet'!I20,'2) Stanovení jednotkové podpory'!$D$117)*(1+IF(MIN('2) Stanovení jednotkové podpory'!D117,'1) Kumulativní rozpočet'!I20)>10000000,0.035,IF(MIN('2) Stanovení jednotkové podpory'!D117,'1) Kumulativní rozpočet'!I20)>3000000,0.05,0.07))),IF(OR(A4=1,A4=4,A4=8),IF(E20>15000000/0.035,E20-15000000/0.035,0),IF(OR(AND(I20>L10,E20<L10),I20<L10),IF(G22<G20,I24-I42,0),IF(E20>L10,L10,0))))","v":0}]
[null,null,null,null,null,null,null,null,{"$f":"IF(J36=\"\",\"Nestanoveno\",J36)","v":"Nestanoveno"}]
[null,null,null,null,null,null,null,null,{"$f":"I46-I47","v":{"$error":"#VALUE!"}}]
[null,null,null,null,null,null,null,null,{"$f":"'1) Kumulativní rozpočet'!F20+IF('KR zdroj'!P26=2,'1) Kumulativní rozpočet'!$I$24*(1+('1) Kumulativní rozpočet'!$E$16/100)),'1) Kumulativní rozpočet'!I24)-I41","v":{"$error":"#VALUE!"}}]
[null,null,null,null,null,null,null,null,{"$f":"IF(J37=\"\",\"Nestanoveno\",J37)","v":"Nestanoveno"}]
[null,null,null,null,null,null,null,null,{"$f":"I49-I50","v":{"$error":"#VALUE!"}}]
[null,"Celkové  jednotkové náklady nad limit paušálu",null,null,null,null,null,null,{"$f":"I43+I47","v":{"$error":"#VALUE!"}}]
[null,null,null,null,null,null,null,null,{"$f":"I44+I45+I48","v":{"$error":"#VALUE!"}}]

{"sheet":"VP pomocné hodnoty","index":6,"n_rows":42,"n_cols":8,"rows_kept":42,"cut":false,"hidden":true,"merged":[[21,3,22,3],[21,4,22,4],[21,5,22,5],[21,6,22,6],[24,6,26,6],[36,1,36,2],[37,1,37,2],[38,1,38,2],[19,1,19,2],[20,1,20,2],[21,1,22,2],[23,1,23,2],[27,6,29,6],[33,1,35,1],[30,1,32,1],[27,1,29,1],[24,1,26,1],[30,6,32,6],[33,6,35,6]]}
[1,"mimo rámec veřejné podpory"]
[2,"De minimis 1407/2013"]
[3,"De minimis 360/2012 (SOHZ)"]
[4,"Rozhodnutí SOHZ"]
[5,"GBER (článek 38) Investiční podpora na opatření ke zvýšení energetické účinnosti "]
[6,"GBER (článek 40) Investiční podpora na vysokoúčinnou kombinovanou výrobu tepla a elektrické energie"]
[7,"GBER (článek 41) Investiční podpora energie z obnovitelných zdrojů"]
[8,"GBER (článek 53) Podpora kultury a zachování kulturního dědictví "]
[9,"GBER (článek 55) Podpora na sportovní a multifunkční rekreační infrastrukturu"]
[10,"GBER (článek 56) Investiční podpora na místní infrastrukturu"]
[]
[1,"Malý podnik"]
[2,"Střední podnik"]
[3,"Velký podnik a ostatní"]
[]
[1,"Praha (bez bonifikace)"]
[2,"regiony dle čl. 107 odst. 3 písm. a) Smlouvy o fungování EU"]
[3,"regiony dle čl. 107 odst. 3 písm. c) Smlouvy o fungování EU"]
[]
[null,"Předpis/článek",null,"Max VP v Praze","Max VP pro regiony dle čl. 107 odst. 3 písm. a) Smlouvy o fungování EU[1]","Max VP pro regiony dle čl. 107 odst. 3 písm.  c) Smlouvy o fungování EU [2]","Notifikační práh "]
[null,"De minimis 1407/2013",null,1,1,1,"n/r"]
[null,"De minimis 360/2012",null,1,1,1,"n/r"]
[]
[null,"Rozhodnutí SOHZ[1]",null,1,1,1,"n/r"]
[null,"GBER 38","VP a O",0.3,0.45,0.35,"15 mil. EUR na podnik a projekt"]
[null,null,"SP",{"$f":"D25+0.1","v":0.4},{"$f":"E25+0.1","v":0.55000000000000004},0.44999999999999996]
[null,null,"MP",{"$f":"D25+0.2","v":0.5},{"$f":"E25+0.2","v":0.65},0.55000000000000004]
[null,"GBER 40","VP a O",0.45,0.6,0.5,"15 mil. EUR na podnik a projekt"]
[null,null,"SP",{"$f":"D28+0.1","v":0.55000000000000004},{"$f":"E28+0.1","v":0.7},0.6]
[null,null,"MP",{"$f":"D28+0.2","v":0.65},{"$f":"E28+0.2","v":0.8},0.7]
[null,"GBER 41","VP a O",0,0.45,0.45,"15 mil. EUR na podnik a projekt","upraveno po změně limitů GBER"]
[null,null,"SP",0,{"$f":"E31+0.1","v":0.55000000000000004},0.55000000000000004,null,"upraveno po změně limitů GBER"]
[null,null,"MP",0,{"$f":"E31+0.2","v":0.65},0.65,null,"upraveno po změně limitů GBER"]
[null,"GBER 41 – malá zařízení","VP a O",0.3,0.45,0.35,"15 mil. EUR na podnik a projekt"]
[null,null,"SP",{"$f":"D34+0.1","v":0.4},{"$f":"E34+0.1","v":0.55000000000000004},0.44999999999999996]
[null,null,"MP",{"$f":"D34+0.2","v":0.5},{"$f":"E34+0.2","v":0.65},0.55000000000000004]
[null,"GBER 53",null,1,1,1,"150 mil. EUR na projekt"]
[null,"GBER 55",null,1,1,1,"30 mil. EUR nebo CZV nepřesáhnou 100 mil. EUR"]
[null,"GBER 56",null,1,1,1,"10 mil. EUR nebo výdaje na projekt přesahující 20 mil. EUR"]
[]
[]
[null,"[1] Pouze pro subjekty pověřené výkonem služby v obecném hospodářském zájmu."]